{"text_format":"1","workbook":"xlsx","n_sheets":3,"sheets":["Plan1","Plan2","Plan3"],"not_rendered":{"charts":0,"images":0,"macros":0,"external_links":0,"defined_names":0,"comments":0,"pivot_tables":0},"unopened":[],"bounds":{"document_bytes":16777216,"sheet_cells":100000,"rows_first":2000,"rows_last":500,"rows_between":2000,"halvings":0,"cell_chars":16384,"cell_head_chars":4096},"cells_cut":0,"cells_raw":0,"read":"whole","date_system":"1900"}

{"sheet":"Plan1","index":0,"n_rows":619,"n_cols":20,"rows_kept":619,"cut":false,"hidden":false,"merged":[]}
["ITEM","DESCRIÇÃO","UNID.","Aimorés","Baixo Guandu","Gov. Lindenbergue","Guasçuí","Ibiraçu","Itaguaçu","Jasguaré","Jer. Monteiro","João Neiva","Marilândia","Rio Bananal","São Domingos","Vargem Alta","Sanear Colatina","TOTAL","R  $  UNIT.","R$   TOTAL"]
[null,"LOTE 01: TUBOS EM PVC PBA CASSE 15 JE/JEI/JERI",null,null,null,null,null,null,null,null,null,null,null,null,null,null,null,{"$f":"SUM(D2:Q2)","v":0}]
["01.1","TUBO PVC PONTA/BOLSA JEI/JERI CLASSE 15 DN50MM DE60MM X 6 METROS, C/ ANEL DE BORRACHA NORMAS: NBR 5647/1 ","Tubo",450,250,null,150,25,null,null,null,20,100,50,50,300,350,{"$f":"SUM(D3:Q3)","v":1745}]
["01.2","TUBO PVC/PBA JE/JEI/JERI CLASSE 15 DN75MM DE85MM X 6 METROS C/ ANEL DE BORRACHA,  NORMAS: NBR 5647-1","Tubo",null,null,null,50,null,null,null,null,31,null,10,null,null,50,141]
["01.3","TUBO PVC/PBA JEI/JERI CLASSE 15 DN100MM DE110MM X 6 METROS, C/ ANEL DE BORRACHA,  NORMAS: NBR 5647-1 ","Tubo",250,null,null,200,null,null,null,null,70,20,10,null,null,100,650]
[null,null,null,null,null,null,null,null,null,null,null,null,null,null,null,null,null,0]
[null,"LOTE 02: TUBOS EM PVC SOLDÁVEL",null,null,null,null,null,null,null,null,null,null,null,null,null,null,null,0]
["02.1","TUBO PVC SOLDÁVEL CLASSE 12 20mm x 6 METROS , NORMAS: NBR 5648","Tubo",800,800,null,200,null,null,null,200,236,50,200,200,40,350,3076]
["02.2","TUBO PVC SOLDÁVEL CLASSE 12 25mm x 6 METROS, NORMAS: NBR 5648","Tubo",300,100,null,50,null,null,null,80,65,10,30,null,15,350,1000]
["02.3","TUBO PVC SOLDÁVEL CLASSE 15 32mm x 6 METROS, NORMAS: NBR 5648","Tubo",60,100,null,50,20,null,null,120,210,null,10,60,100,400,1130]
["02.4","TUBO PVC SOLDÁVEL CLASSE 15 40mm x 06 METROS, NORMAS: NBR 5648","Tubo",null,100,15,null,null,null,null,50,28,null,5,null,null,200,398]
["02.5","TUBO PVC SOLDÁVEL CLASSE 15 50mm X 06 METROS, NORMAS:  NBR 5648","Tubo",null,null,null,20,30,null,null,400,179,null,10,null,null,200,839]
["02.6","TUBO PVC SOLDÁVEL CLASSE 15 60mm X 06 METROS, NORMAS:  NBR 5648","Tubo",null,null,null,null,null,null,null,500,184,null,null,null,null,0,684]
[null,null,null,null,null,null,null,null,null,null,null,null,null,null,null,null,null,{"$f":"SUM(D14:Q14)","v":0}]
[null,"LOTE 03: TUBOS EM PVC ROSCÁVEL",null,null,null,null,null,null,null,null,null,null,null,null,null,null,null,0]
["03.1","TUBO PVC BRANCO ROSCAVEL 1/2” X 6 METROS, NORMAS: NBR 5626","Tubo",null,null,null,null,null,null,null,null,null,null,null,100,null,500,600]
["03.2","TUBO PVC BRANCO ROSCAVEL 3/4” X 6 METROS, NORMAS: NBR 5626","Tubo",null,20,null,null,null,null,null,null,null,null,null,50,null,250,320]
["03.3","TUBO PVC BRANCO ROSCAVEL 1” X 6 METROS, NORMAS: NBR 5626","Tubo",null,20,null,null,null,null,null,null,null,null,null,30,null,150,200]
["03.4","TUBO PVC BRANCO ROSCAVEL 1,1/2” X 6 METROS, NORMAS: NBR 5626","Tubo",null,null,null,null,null,null,null,null,null,null,null,null,null,100,100]
["03.5","TUBO PVC BRANCO ROSCAVEL 2” X 6 METROS, NORMAS: NBR 5626","Tubo",null,null,null,null,null,null,null,null,null,null,null,null,null,100,100]
[null,null,null,null,null,null,null,null,null,null,null,null,null,null,null,null,null,0]
[null,"LOTE 04: TUBOS EM PVC DEFOFO JEI",null,null,null,null,null,null,null,null,null,null,null,null,null,null,null,{"$f":"SUM(D22:Q22)","v":0}]
["04.1","TUBO DEFOFO MPVC PONTA/BOLSA JEI/JERI DN 100mm X 6 METROS, NORMAS: NBR 7665/2007","Tubo",null,180,null,null,null,null,null,null,null,null,null,null,10,1000,1190]
["04.2","TUBO PVC DEFOFO PONTA/BOLSA JEI/JERI DN150mm X 6 METROS, NORMAS: NBR 7665/2007","Tubo",150,null,null,30,5,null,null,20,null,null,null,null,null,334,539]
["04.3","TUBO PVC DEFOFO PONTA/BOLSA JEI/JERI DN200mm X 6 METROS, NORMAS: NBR 7665/2007","Tubo",50,null,null,20,null,null,null,null,10,10,null,3,null,100,193]
["04.4","TUBO PVC DEFOFO PONTA/BOLSA JEI/JERI DN250mm X 6 METROS, NORMAS: NBR 7665/2007","Tubo",null,null,null,20,null,null,null,null,19,null,1,null,null,50,90]
["04.5","TUBO PVC DEFOFO PONTA/BOLSA JEI/JERI DN300mm X 6 METROS, NORMAS: NBR 7665/2007","Tubo",null,null,null,10,null,null,null,null,null,null,null,null,null,50,60]
[null,null,null,null,null,null,null,null,null,null,null,null,null,null,null,null,null,0]
[null,"LOTE 05: TUBOS EM PEAD PE-80",null,null,null,null,null,null,null,null,null,null,null,null,null,null,null,0]
["05.1","TUBO EM POLIETILENO DE ALTA DENSIDADE(PEAD) PE-80, NA COR AZUL , DIAMETRO 20MM, PN-10, PRESSÃO DE ATÉ 1MPA (10 KGF/CM2 - 100 MCA), CONFORME NTS-048 ","MTS.",null,5000,null,null,null,null,null,null,null,null,null,null,null,500,{"$f":"SUM(D30:Q30)","v":5500}]
[null,null,null,null,null,null,null,null,null,null,null,null,null,null,null,null,null,{"$f":"SUM(D31:Q31)","v":0}]
[null,"LOTE 06: CONEXÕES EM PVC PBA JE",null,null,null,null,null,null,null,null,null,null,null,null,null,null,null,0]
["06.1","ADAPTADOR PVC JE PONTA ROSCA PBA DN50 DE60MM, NORMAS: NBR 5647-1","Pç.",null,100,null," 20",null,null,null,null,null,null,null,100,null,null,200]
["06.2","ADAPTADOR PVC X FIBRO CIMENTO JE PBA DN50 DE60MM, COM ANEL DE BORRACHA, NORMAS: NBR 5647-1","Pç.",null,100,null,10,null,null,null,null,null,null,null,null,null,0,110]
["06.3","ADAPTADOR PVC X FIBRO CIMENTO JE PBA DN75 DE85MM, COM ANEL DE BORRACHA, NORMAS: NBR 5647-1","Pç.",null,null,null,10,null,null,null,null,null,null,null,null,null,null,10]
["06.4","ADAPTADOR PVC JE / ROSCA PBA DN75 DE85MM, COM ANEL DE BORRACHA, NORMAS: NBR 5647-1","Pç.",null,null,null,10,null,null,null,null,null,null,null,null,null,null,10]
["06.5","ADAPTADOR PVC JE / ROSCA PBA DN100 DE110MM, COM ANEL DE BORRACHA, NORMAS: NBR 5647-1","Pç.",null,null,null,20,null,null,null,null,null,null,null,null,null,null,20]
["06.6","ADAPTADOR PVC X FIBRO CIMENTO JE PBA DN100 DE110MM, COM ANEL DE BORRACHA, NORMAS: NBR 5647-1","Pç.",null,20,null,10,null,null,null,null,null,null,null,null,null,null,30]
["06.7","CAP PVC JE PBA DN50 DE60MM, COM ANEL DE BORRACHA, NORMAS: NBR 5647-1","Pç.",null,null,null,20,null,null,null,null,null,null,null,null,null,null,20]
["06.8","CAP PVC JE PBA DN75 DE85MM, COM ANEL DE BORRACHA, NORMAS: NBR 5647-1","Pç.",null,5,null,10,null,null,null,null,null,null,null,null,null,null,15]
["06.9","CAP PVC JE PBA DN100 DE110MM, COM ANEL DE BORRACHA, NORMAS: NBR 5647-","Pç.",null,5,null,10,null,null,null,null,null,null,null,null,null,null,15]
["06.10","CRUZETA PVC JE BBBB PBA DN50 DE60MM, COM ANEL DE BORRACHA, NORMAS: NBR 5647-1","Pç.",null,10,null,5,null,null,null,null,null,null,null,null,null,null,15]
["06.11","CRUZETA DE REDUÇÃO PVC JE BBBB PBA DN 75X50MM DE 85X60MM, COM ANEL DE BORRACHA, NORMAS: NBR 5647-1","Pç.",null,5,null,5,null,null,null,null,null,null,null,null,null,null,10]
["06.12","CRUZETA PVC JE BBBB PBA DN75 DE85MM, COM ANEL DE BORRACHA, NORMAS: NBR 5647-1","Pç.",null,10,null,5,null,null,null,null,null,null,null,null,null,null,15]
["06.13","CRUZETA DE REDUÇÃO PVC JE BBBB PBA DN 100X50MM DE 110X60MM, COM ANEL DE BORRACHA, NORMAS: NBR 5647-1","Pç.",null,10,null,5,null,null,null,null,null,null,null,null,null,null,15]
["06.14","CRUZETA DE REDUÇÃO PVC JE BBBB PBA DN 100X75MM DE 110X85MM, COM ANEL DE BORRACHA, NORMAS: NBR 5647-1","Pç.",null,10,null,5,null,null,null,null,null,null,null,null,null,null,15]
["06.15","CRUZETA PVC JE BBBB PBA DN100 DE110MM, COM ANEL DE BORRACHA, NORMAS: NBR 5647-1","Pç.",null,5,null,null,null,null,null,null,null,null,null,null,null,null,5]
["06.16","CURVA 22° PVC JE PB PBA DN50 DE60MM CL-20, COM ANEL DE BORRACHA, NORMAS: NBR 5647-1","Pç.",null,null,null,5,null,null,null,null,null,null,null,null,null,30,35]
["06.17","CURVA 45° PVC JE PB PBA DN50 DE60MM CL-20, COM ANEL DE BORRACHA, NORMAS: NBR 5647-1","Pç.",null,20,null,10,null,null,null,null,null,null,null,null,5,30,65]
["06.18","CURVA 90° PVC JE PB PBA DN50 DE60MM CL-20, COM ANEL DE BORRACHA, NORMAS: NBR 5647-1","Pç.",null,100,null,10,null,null,null,null,null,null,null,null,5,100,215]
["06.19","CURVA 22° PVC JE PB PBA DN65 DE75MM CL-20, COM ANEL DE BORRACHA, NORMAS: NBR 5647-1","Pç.",null,null,null,10,null,null,null,null,null,null,null,null,null,7,17]
["06.20","CURVA 22° PVC JE PB PBA DN75 DE85MM, COM ANEL DE BORRACHA, NORMAS: NBR 5647-1","Pç.",null,null,null,10,null,null,null,null,null,null,null,null,null,30,40]
["06.21","CURVA 45° PVC JE PB PBA DN75 DE85MM, COM ANEL DE BORRACHA, NORMAS: NBR 5647-1","Pç.",null,5,10,10,null,null,null,null,null,null,null,null,null,30,55]
["06.22","CURVA 90° PVC JE PB PBA DN75 DE85MM, COM ANEL DE BORRACHA, NORMAS: NBR 5647-1","Pç.",null,50,10,10,null,null,null,null,null,null,null,null,null,30,100]
["06.23","CURVA 22° PVC JE PB DN100 DE110MM, COM ANEL DE BORRACHA, NORMAS: NBR 5647-1","Pç.",null,null,null,10,null,null,null,null,null,null,null,null,null,30,40]
["06.24","CURVA 90° PVC JE PB DN100 DE110MM, COM ANEL DE BORRACHA, NORMAS: NBR 5647-1","Pç.",null,50,4,10,null,null,null,null,null,null,2,null,null,30,96]
["06.25","CURVA 45° PVC JE PB DN100 DE110MM, COM ANEL DE BORRACHA, NORMAS: NBR 5647-1","Pç.",null,10,null,10,null,null,null,null,null,null,2,null,null,30,52]
["06.26","JUNÇÃO PVC JE BBB PBA DN50 DE60MM, COM ANEL DE BORRACHA, NORMAS: NBR 5647-1","Pç.",null,null,null,5,null,null,null,null,null,null,5,null,null,null,10]
["06.27","LUVA DE CORRER PVC BOLSA/BOLSA JUNTA ELÁSTICA DN50 DE60MM, COM ANEL DE BORRACHA, NORMAS: NBR 5647-1","Pç.",100,200,null,20,null,20,null,null,null,30,60,200,200,500,1330]
["06.28","LUVA SIMPLES PVC JE PBA DN50 DE60MM, COM ANEL DE BORRACHA, NORMAS: NBR 5647-1","Pç.",null,100,null,20,null,null,null,null,30,null,null,null,null,0,150]
["06.29","LUVA DE CORRER PVC BOLSA/BOLSA JUNTA ELÁSTICA DN60 DE75MM, COM ANEL DE BORRACHA, NORMAS: NBR 5647-1","Pç.",null,50,null,10,null,null,null,null,null,null,5,null,null,100,165]
["06.30","LUVA DE CORRER PVC BOLSA/BOLSA JUNTA ELÁSTICA DN75 DE85MM, COM ANEL DE BORRACHA, NORMAS: NBR 5647-1","Pç.",60,50,null,10,null,null,null,null,null,5,10,null,50,100,285]
["06.31","LUVA SIMPLES PVC JE PBA DN75 DE85MM, COM ANEL DE BORRACHA, NORMAS: NBR 5647-1","Pç.",null,30,null,10,null,null,null,null,null,null,null,null,null,0,40]
["06.32","LUVA DE CORRER PVC BOLSA/BOLSA JUNTA ELÁSTICA DN100 DE110MM, COM ANEL DE BORRACHA, NORMAS: NBR 5647-1","Pç.",40,20,null,20,15,null,null,null,100,6,5,null,30,400,636]
["06.33","LUVA SIMPLES PVC JE PBA DN100 DE110MM, COM ANEL DE BORRACHA, NORMAS: NBR 5647-1","Pç.",null,15,null,20,null,null,null,null,null,null,null,null,null,0,35]
["06.34","REDUÇÃO PVC JE PB PBA 75MM x 60MM, COM ANEL DE BORRACHA, NORMAS: NBR 5647-1","Pç.",null,12,null,5,null,null,null,null,null,null,null,null,null,50,67]
["06.35","REDUÇÃO PVC JE BB PBA 85MM x 60MM, COM ANEL DE BORRACHA, NORMAS: NBR 5647-1","Pç.",null,12,null,10,null,null,null,null,null,2,null,null,null,60,84]
["06.36","REDUÇÃO PVC JE PB PBA 85MM x 60MM, COM ANEL DE BORRACHA, NORMAS: NBR 5647-1","Pç.",null,12,null,10,null,null,null,null,null,null,null,5,null,50,77]
["06.37","REDUÇÃO PVC JE PB PBA 85MM x 75MM, COM ANEL DE BORRACHA, NORMAS: NBR 5647-1","Pç.",null,12,null,5,null,null,null,null,null,null,null,null,null,50,67]
["06.38","REDUÇÃO PVC JE BB PBA 110MM x 85MM, COM ANEL DE BORRACHA, NORMAS: NBR 5647-1","Pç.",null,12,null,10,null,null,null,null,null,2,null,null,null,50,74]
["06.39","REDUÇÃO PVC JE BB PBA 110MM x 60MM, COM ANEL DE BORRACHA, NORMAS: NBR 5647-1","Pç.",null,12,null,10,null,null,null,null,null,4,null,null,null,50,76]
["06.40","REDUÇÃO PVC JE PB PBA 110MM x 60MM, COM ANEL DE BORRACHA, NORMAS: NBR 5647-1","Pç.",null,12,null,10,null,null,null,null,null,null,null,5,null,50,77]
["06.41","REDUÇÃO PVC JE PB PBA 110MM x 85MM, COM ANEL DE BORRACHA, NORMAS: NBR 5647-1","Pç.",null,12,null,10,null,null,null,null,null,null,null,null,null,50,72]
["06.42","REDUÇÃO PVC JE PB PBA 200MM x 160MM, COM ANEL DE BORRACHA, NORMAS: NBR 5647-1","Pç.",null,null,null,null,1,null,null,null,null,null,null,null,null,null,1]
["06.43","TÊ PVC JE BBB PBA DN50 DE60MM, COM ANEL DE BORRACHA, NORMAS: NBR 5647-1","Pç.",null,200,null,10,4,null,null,100,10,6,5,null,null,0,335]
["06.44","TÊ DE REDUÇÃO JE BBB PBA DN 75MM X 50MM DE 85MM X 60MM, COM ANEL DE BORRACHA, NORMAS: NBR 5647-1","Pç.",null,10,null,5,null,null,null,null,2,null,null,null,null,0,17]
["06.45","TÊ PVC JE BBB PBA DN75 DE85MM, COM ANEL DE BORRACHA, NORMAS: NBR 5647-1","Pç.",null,10,null,5,4,null,null,null,6,null,null,null,null,20,45]
["06.46","TÊ DE REDUÇÃO JE BBB PBA DN 100MM X 50MM DE 110MM X 60MM, COM ANEL DE BORRACHA, NORMAS: NBR 5647-1","Pç.",null,10,null,10,null,null,null,null,1,2,null,null,null,0,23]
["06.47","TÊ DE REDUÇÃO JE BBB PBA DN 100MM X 75MM DE 110MM X 85MM, COM ANEL DE BORRACHA, NORMAS: NBR 5647-1","Pç.",null,null,null,10,null,null,null,null,null,null,2,null,null,0,12]
["06.48","TÊ PVC JE BBB PBA DN100 DE110MM, COM ANEL DE BORRACHA, NORMAS: NBR 5647-1","Pç.",null,10,null,10,null,null,null,null,null,2,null,null,null,20,42]
["06.49","TÊ DE REDUÇÃO JE BBB PBA DE150MM X 60MM COM ANEL DE BORRACHA, NORMAS: NBR 5647-1","Pç.",null,null,2,null,null,null,null,null,null,null,null,null,null,null,2]
[null,null,null,null,null,null,null,null,null,null,null,null,null,null,null,null,null,0]
[null,"LOTE 07: ADESIVOS, FITA VEDA ROSCA, E LUBRIFICANTES",null,null,null,null,null,null,null,null,null,null,null,null,null,null,null,0]
["07.1","ADESIVO PLÁSTICO PARA TUBOS E CONEXÕES DE PVC RÍGIDO (BISNAGA) 75g","Pç.",400,1000,null,200,200,500,null,400,500,100,null,null,300,3000,6600]
["07.2","ADESIVO PLÁSTICO PARA TUBOS E CONEXÕES DE PVC RÍGIDO (FRASCO) 175g","Pç.",60,null,10,null,null,null,null,null,null,null,20,50,null,null,140]
["07.3","ADESIVO PLÁSTICO PARA TUBOS E CONEXÕES DE PVC RÍGIDO (FRASCO) 850g","Pç.",null,null,5,null,null,null,null,null,null,null,50,30,null,0,85]
["07.4","FITA VEDA ROSCA 18MM X 50 METROS","Pç.",300,600,50,100,100,100,null,null,200,40,60,null,30,5000,6580]
["07.5","PASTA LUBRIFICANTE EM BISNAGA COM BICO APLICADOR CAPACIDADE 160 GRS.","Pç.",null,null,null,null,null,30,null,50,null,null,null,null,50,0,130]
["07.6","PASTA LUBRIFICANTE EM BISNAGA COM BICO APLICADOR CAPACIDADE 400 GRS.","Pç.",null,null,null,null,null,null,null,null,50,null,40,null,null,0,90]
["07.7","PASTA LUBRIFICANTE EM BISNAGA COM BICO APLICADOR CAPACIDADE 1.000 GRS.","Pç.",150,null,null,10,null,null,null,null,null,null,null,null,null,500,660]
["07.8","SOLUÇÃO PREPRADORA FRASCO 200ML","Pç.",null,null,null,null,null,null,null,null,null,null,5,null,null,0,5]
["07.9","SOLUÇÃO PREPRADORA FRASCO 1.000ML","Pç.",null,null,null,null,null,null,null,null,null,null,null,null,null,300,300]
[null,null,null,null,null,null,null,null,null,null,null,null,null,null,null,null,null,0]
[null,"LOTE 08: CONEXÕES DEFOFO – JE/JEI/JERI",null,null,null,null,null,null,null,null,null,null,null,null,null,null,null,0]
["08.1","LUVA DE CORRER DE FOFO MPVC BOLSA/BOLSA JE COM ANÉIS PARA TUBO PVC DEFOFO DN100MM, NORMAS: NBR 7665/2007","Pç.",null,null,null,null,null,null,null,null,null,null,null,null,null,400,{"$f":"SUM(D95:Q95)","v":400}]
["08.2","LUVA DE CORRER DE FOFO MPVC BOLSA/BOLSA JE/JEI/JERI COM ANÉIS PARA TUBO PVC DEFOFO DN100MM, NORMAS: NBR 7665/2007","Pç.",null,20,null,null,null,null,null,null,null,null,null,null,50,null,70]
["08.3","LUVA DE CORRER DEFOFO MPVC BOLSA/BOLSA JE COM ANÉIS PARA TUBO PVC DEFOFO DN150MM, NORMAS: NBR 7665/2007","Pç.",null,null,null,null,null,null,null,null,null,null,null,null,null,400,400]
["08.4","LUVA DE CORRER DEFOFO MPVC BOLSA/BOLSA JE/JEI/JERI COM ANÉIS PARA TUBO PVC DEFOFO DN150MM, NORMAS: NBR 7665/2007","Pç.",null,12,null,10,6,null,null,20,null,null,null,null,null,null,48]
["08.5","LUVA DE CORRER DEFOFO MPVC BOLSA/BOLSA JE COM ANÉIS PARA TUBO PVC DEFOFO DN200MM, NORMAS: NBR 7665/2007","Pç.",null,null,null,null,null,null,null,null,null,null,null,null,null,300,300]
["08.6","LUVA DE CORRER DEFOFO MPVC BOLSA/BOLSA JE/JEI/JERI COM ANÉIS PARA TUBO PVC DEFOFO DN200MM, NORMAS: NBR 7665/2007","Pç.",null,10,null,6,null,null,null,null,null,2,5,null,null,null,23]
["08.7","LUVA DE CORRER DEFOFO MPVC BOLSA/BOLSA JE COM ANÉIS PARA TUBO PVC DEFOFO DN250MM, NORMAS: NBR 7665/2007","Pç.",null,null,null,null,null,null,null,null,null,null,null,null,null,100,100]
["08.8","LUVA DE CORRER DEFOFO MPVC BOLSA/BOLSA JE/JEI/JERI COM ANÉIS PARA TUBO PVC DEFOFO DN250MM, NORMAS: NBR 7665/2007","Pç.",null,6,null,6,null,null,null,null,null,2,null,null,null,null,14]
["08.9","LUVA DE CORRER DEFOFO MPVC BOLSA/BOLSA JE COM ANÉIS PARA TUBO PVC DEFOFO DN300MM, NORMAS: NBR 7665/2007","Pç.",null,null,null,null,null,null,null,null,null,null,null,null,null,100,100]
["08.10","LUVA DE CORRER DEFOFO MPVC BOLSA/BOLSA JE/JEI/JERI COM ANÉIS PARA TUBO PVC DEFOFO DN300MM, NORMAS: NBR 7665/2007","Pç.",null,10,null,4,null,null,null,null,null,null,null,null,null,null,14]
[null,null,null,null,null,null,null,null,null,null,null,null,null,null,null,null,null,0]
[null,"LOTE 09: CONEXÕES PVC SOLDÁVEIS",null,null,null,null,null,null,null,null,null,null,null,null,null,null,null,0]
["09.1","ADAPTADOR SOLDÁVEL CURTO COM BOLSA E ROSCA PVC PARA REGISTRO DE 20MM X 1/2”, NORMAS: NBR 5648","Pç.",400,200,null,100,300,200,null,500,770,150,400,300,50,500,3870]
["09.2","ADAPTADOR SOLDÁVEL CURTO COM BOLSA E ROSCA PVC PARA REGISTRO DE 25MM X 3/4”, NORMAS:  NBR 5648","Pç.",null,200,null,50,null,100,null,50,320,30,null,null,null,500,1250]
["09.3","ADAPTADOR SOLDÁVEL CURTO COM BOLSA E ROSCA PVC PARA REGISTRO DE 32MM X 1”, NORMAS: NBR 5648","Pç.",null,100,null,10,null,50,null,null,150,null,null,null,10,500,820]
["09.4","ADAPTADOR SOLDÁVEL CURTO COM BOLSA E ROSCA PVC PARA REGISTRO DE 40MMX1 ¼”, NORMAS:  NBR 5648","Pç.",null,50,null,null,null,null,null,null,50,null,null,null,null,500,600]
["09.5","ADAPTADOR SOLDÁVEL CURTO COM BOLSA E ROSCA PVC PARA REGISTRO DE 50MMX1 ½”, NORMAS: NBR 5648","Pç.",null,20,null,null,null,50,null,null,30,null,null,null,null,300,400]
["09.6","ADAPTADOR SOLDÁVEL CURTO COM BOLSA E ROSCA PVC PARA REGISTRO DE 60MMX2”, NORMAS: NBR 5648  ","Pç.",null,100,10,null,null,50,null,null,30,10,10,null,null,500,710]
["09.7","ADAPTADOR SOLDÁVEL CURTO COM BOLSA E ROSCA PVC PARA REGISTRO DE 75MMX2 ½”, NORMAS:  NBR 5648","Pç.",null,null,null,null,null,20,null,null,10,null,null,null,null,200,230]
["09.8","ADAPTADOR SOLDÁVEL CURTO COM BOLSA E ROSCA PVC PARA REGISTRO DE 85MMX3”, NORMAS:  NBR 5648","Pç.",null,null,null,null,null,20,null,null,20,null,null,null,10,200,250]
["09.9","ADAPTADOR SOLDÁVEL COM FLANGES LIVRES PARA CAIXA D’ÁGUA 110MM X 4”, NORMAS: BR 5648","Pç.",null,null,null,null,null,null,null,null,null,2,null,null,null,null,2]
["09.10","ADAPTADOR SOLDAVEL CURTO COM BOLSA E ROSCA PVC 110MMX4”, NORMAS: BR 5648","Pç.",null,12,null,null,null,10,null,null,10,null,null,null,null,100,132]
["09.11","BUCHA DE REDUÇÃO SOLDÁVEL CURTA PVC DE 25mmX20mm, NORMAS: NBR 5648","Pç.",600,500,null,200,null,100,null,150,100,null,100,30,null,200,1980]
["09.12","BUCHA DE REDUÇÃO SOLDÁVEL CURTA PVC DE 32mmX25mm, NORMAS: NBR 5648","Pç.",100,300,null,100,null,50,null,50,50,null,null,30,null,100,780]
["09.13","BUCHA DE REDUÇÃO SOLDÁVEL LONGA PVC DE 32mmX20mm, NORMAS: NBR 5648","Pç.",60,null,null,null,null,null,null,null,30,null,null,null,null,100,190]
["09.14","BUCHA DE REDUÇÃO SOLDÁVEL CURTA PVC DE 40mmX32mm, NORMAS:  NBR 5648","Pç.",null,100,null,null,null,null,null,50,30,null,null,null,null,50,230]
["09.15","BUCHA DE REDUÇÃO SOLDÁVEL LONGA PVC DE 40mmX20mm, NORMAS: NBR 5648","Pç.",null,null,null,null,null,null,null,null,20,null,null,null,null,100,120]
["09.16","BUCHA DE REDUÇÃO SOLDÁVEL LONGA PVC DE 40mmX25mm, NORMAS: NBR 5648","Pç.",null,null,null,null,null,null,null,null,20,null,null,null,null,0,20]
["09.17","BUCHA DE REDUÇÃO SOLDÁVEL CURTA PVC DE50mmX40mm, NORMAS: NBR 5648","Pç.",null,100,10,null,null,10,null,20,30,null,null,null,null,50,220]
["09.18","BUCHA DE REDUÇÃO SOLDÁVEL LONGA PVC DE 50mmX20mm, NORMAS: NBR 5648","Pç.",null,null,null,null,null,null,null,null,20,null,null,null,null,100,120]
["09.19","BUCHA DE REDUÇÃO SOLDÁVEL LONGA PVC DE 50mmX25mm, NORMAS: NBR 5648","Pç.",null,null,null,null,null,null,null,null,20,null,null,null,null,100,120]
["09.20","BUCHA DE REDUÇÃO SOLDÁVEL LONGA PVC DE 50mmX32mm, NORMAS: NBR 5648","Pç.",null,null,null,null,null,null,null,null,20,null,null,null,null,100,120]
["09.21","BUCHA DE REDUÇÃO SOLDÁVEL CURTA PVC DE60mmX50mm, NORMAS:  NBR 5648","Pç.",null,100,10,10,null,10,null,100,40,null,10,null,null,50,330]
["09.22","BUCHA DE REDUÇÃO SOLDÁVEL LONGA PVC DE 60mmX25mm, NORMAS: NBR 5648","Pç.",null,null,null,null,null,null,null,null,30,null,null,null,null,100,130]
["09.23","BUCHA DE REDUÇÃO SOLDÁVEL LONGA PVC DE 60mmX32mm, NORMAS: NBR 5648","Pç.",null,null,null,null,null,null,null,null,30,null,null,null,null,100,130]
["09.24","BUCHA DE REDUÇÃO SOLDÁVEL LONGA PVC DE 60mmX40mm, NORMAS: NBR 5648","Pç.",null,null,null,null,null,null,null,null,20,null,null,null,null,50,70]
["09.25","BUCHA DE REDUÇÃO SOLDÁVEL LONGA PVC DE 60mmX50mm, NORMAS: NBR 5648","Pç.",null,null,10,null,null,null,null,null,20,null,null,null,null,50,80]
["09.26","BUCHA DE REDUÇÃO SOLDÁVEL CURTA PVC DE75mmX60mm, NORMAS:  NBR 5648","Pç.",null,50,5,10,null,10,null,30,10,null,5,null,null,0,120]
["09.27","BUCHA DE REDUÇÃO SOLDÁVEL LONGA PVC DE 75mmX50mm, NORMAS:  NBR 5648","Pç.",null,null,null,null,null,null,null,null,10,null,null,null,null,0,10]
["09.28","BUCHA DE REDUÇÃO SOLDÁVEL CURTA PVC DE 85MMX75MM, NORMAS:  NBR 5648","Pç.",null,50,null,10,null,10,null,null,10,null,5,null,null,0,85]
["09.29","BUCHA DE REDUÇÃO SOLDÁVEL LONGA PVC DE 110mmX60mm,NORMAS: NBR 5648","Pç.",null,null,4,null,null,null,null,null,20,null,null,null,null,0,24]
["09.30","BUCHA DE REDUÇÃO SOLDÁVEL LONGA PVC DE 85mmX60mm, NORMAS:  NBR 5648","Pç.",null,null,null,null,null,null,null,null,20,null,null,null,null,0,20]
["09.31","BUCHA DE REDUÇÃO SOLDÁVEL CURTA PVC DE 110MMX85MM, NORMAS: NBR 5648","Pç.",null,null,5,10,null,10,null,null,10,null,5,null,null,0,40]
["09.32","BUCHA DE REDUÇÃO SOLDÁVEL LONGA PVC DE 110mmX75mm, NORMAS:NBR 5648","Pç.",null,null,null,null,null,null,null,null,5,null,null,null,null,0,5]
["09.33","CAP SOLDÁVEL PVC DE 20 MM, NORMAS:  NBR 5648","Pç.",null,600,200,100,null,50,null,null,100,20,300,10,100,200,1680]
["09.34","CAP SOLDÁVEL PVC DE 25 MM, NORMAS:  NBR 5648","Pç.",null,500,100,50,null,50,null,null,50,6,50,30,10,100,946]
["09.35","CAP SOLDÁVEL PVC DE 32 MM, NORMAS:  NBR 5648","Pç.",null,200,25,50,null,30,null,30,100,null,null,30,10,100,575]
["09.36","CAP SOLDÁVEL PVC DE 40 MM, NORMAS:  NBR 5648","Pç.",null,100,null,null,null,10,null,null,50,null,null,null,null,50,210]
["09.37","CAP SOLDÁVEL PVC DE 50 MM, NORMAS: NBR 5648","Pç.",null,null,null,20,null,10,null,null,50,null,null,null,null,50,130]
["09.38","CAP SOLDÁVEL PVC DE 60 MM, NORMAS:  NBR 5648","Pç.",30,100,10,20,null,10,null,30,150,10,20,30,10,500,920]
["09.39","CAP SOLDÁVEL PVC DE 75MM, NORMAS:  NBR 5648","Pç.",null,15,null,5,null,10,null,null,10,null,null,null,null,30,70]
["09.40","CAP SOLDÁVEL PVC DE 85 MM, NORMAS: NBR 5648","Pç.",null,10,10,10,null,5,null,null,20,2,null,3,null,30,90]
["09.41","CAP SOLDÁVEL PVC DE 110 MM, NORMAS: NBR 5648","Pç.",null,10,null,10,null,5,null,null,50,2,null,3,null,30,110]
["09.42","COLAR TOMADA PVC COM TRAVAS EM PVC 32MM X 1/2”, NORMAS: NBR 5648","Pç.",null,null,null,50,null,null,null,50,350,null,null,30,200,100,780]
["09.43","COLAR TOMADA PVC COM TRAVAS EM PVC 32MM X 3/4”, NORMAS: NBR 5648","Pç.",null,300,null,null,null,null,null,null,20,null,null,null,30,50,400]
["09.44","COLAR TOMADA PVC COM TRAVAS EM PVC 40MM X 1/2”, NORMAS: NBR 5648","Pç.",null,null,null,null,null,null,null,null,124,null,null,5,null,100,229]
["09.45","COLAR TOMADA PVC COM TRAVAS EM PVC 40MM X 3/4”, NORMAS: NBR 5648","Pç.",null,200,null,null,null,null,null,null,null,null,null,null,null,50,250]
["09.46","COLAR TOMADA PVC COM TRAVAS EM PVC 50MM X 1/2”, NORMAS: NBR 5648","Pç.",null,null,null,100,null,20,null,100,30,null,null,null,null,100,350]
["09.47","COLAR TOMADA PVC COM TRAVAS EM PVC 50MM X 3/4”, NORMAS: NBR 5648","Pç.",null,null,null,null,null,null,null,null,20,null,null,null,null,50,70]
["09.48","COLAR TOMADA PVC COM TRAVAS EM PVC 60MM X 1/2”, NORMAS: NBR 5648","Pç.",null,null,null,100,20,50,null,200,100,40,200,200,200,500,1610]
["09.49","COLAR TOMADA PVC COM TRAVAS EM PVC 60MM X 3/4”, NORMAS: NBR 5648","Pç.",null,800,null,null,null,null,null,null,50,null,null,null,30,200,1080]
["09.50","COLAR TOMADA PVC COM TRAVAS EM PVC 75MM X 1/2”, NORMAS: NBR 5648","Pç.",null,null,null,20,null,10,null,null,10,null,null,null,null,10,50]
["09.51","COLAR TOMADA PVC COM TRAVAS EM PVC 75MM X 3/4”, NORMAS: NBR 5648","Pç.",null,150,null,null,null,null,null,null,null,null,null,null,null,10,160]
["09.52","COLAR TOMADA PVC COM TRAVAS EM PVC 85MM X 1/2”, NORMAS: NBR 5648","Pç.",null,null,20,50,null,10,null,null,50,10,null,100,null,10,250]
["09.53","COLAR TOMADA PVC COM TRAVAS EM PVC 85MM X 3/4”, NORMAS: NBR 5648","Pç.",null,100,10,null,null,null,null,null,30,null,null,null,null,0,{"$f":"SUM(D159:Q159)","v":140}]
["09.54","COLAR TOMADA PVC COM TRAVAS EM PVC 110MM X 1/2”, NORMAS: NBR 5648","Pç.",null,null,null,50,null,10,null,null,50,10,null,5,null,null,125]
["09.55","COLAR TOMADA PVC COM TRAVAS EM PVC 110MM X 3/4”, NORMAS: NBR 5648","Pç.",null,150,null,null,null,null,null,null,null,null,null,null,null,null,150]
["09.56","CRUZETA SOLDÁVEL PVC 25MM, NORMAS: NBR 5648","Pç.",null,null,null,10,null,null,null,null,null,null,null,null,null,null,10]
["09.57","CRUZETA SOLDÁVEL PVC 50MM, NORMAS: NBR 5648","Pç.",null,null,null,10,null,null,null,null,null,null,null,null,null,null,10]
["09.58","CURVA 45º SOLDÁVEL PVC 20MM, NORMAS:  NBR 5648",null,null,null,null,50,null,null,null,null,null,null,null,40,null,null,90]
["09.59","CURVA 90º SOLDÁVEL PVC 20MM, NORMAS:  NBR 5648","Pç.",null,500,null,200,null,null,null,null,null,null,null,null,null,null,700]
["09.60","CURVA 45º SOLDÁVEL PVC 25MM, NORMAS:  NBR 5648","Pç.",null,50,null,50,null,null,null,null,null,null,null,null,null,null,100]
["09.61","CURVA 90º SOLDÁVEL PVC 25MM, NORMAS:  NBR 5648","Pç.",null,200,null,100,null,null,null,null,null,null,null,null,null,null,300]
["09.62","CURVA 45º SOLDÁVEL PVC 32MM, NORMAS:  NBR 5648","Pç.",null,100,null,50,null,null,null,null,null,null,null,null,null,null,150]
["09.63","CURVA 90º SOLDÁVEL PVC 32MM, NORMAS:  NBR 5648","Pç.",null,100,null,100,null,null,null,null,null,null,null,null,10,null,210]
["09.64","CURVA 45º SOLDÁVEL PVC 40MM, NORMAS:  NBR 5648","Pç.",null,10,null,null,null,null,null,null,10,null,null,null,null,null,20]
["09.65","CURVA 90º SOLDÁVEL PVC 40MM, NORMAS:  NBR 5648","Pç.",null,50,null,null,null,null,null,null,13,null,null,null,null,null,63]
["09.66","CURVA 45º SOLDÁVEL PVC 50MM, NORMAS:  NBR 5648","Pç.",null,10,null,50,null,null,null,null,10,null,null,null,null,null,70]
["09.67","CURVA 90º SOLDÁVEL PVC 50MM, NORMAS:  NBR 5648","Pç.",null,20,null,20,null,null,null,null,15,null,null,null,null,null,55]
["09.68","CURVA 45º SOLDÁVEL PVC 60MM, NORMAS:  NBR 5648","Pç",null,100,20,50,null,null,null,null,30,5,null,null,10,null,215]
["09.69","CURVA 90º SOLDÁVEL PVC 60MM, NORMAS:  NBR 5648","Pç.",null,200,10,20,null,null,null,null,30,10,null,null,10,null,280]
["09.70","CURVA 45º SOLDÁVEL PVC 75MM, NORMAS:  NBR 5648","Pç.",null,18,null,10,null,null,null,null,null,null,null,null,null,null,28]
["09.71","CURVA 90º SOLDÁVEL PVC 75MM, NORMAS:  NBR 5648","Pç.",null,30,null,null,null,null,null,null,null,null,null,null,null,null,30]
["09.72","CURVA 45º SOLDÁVEL PVC 85MM, NORMAS:  NBR 5648","Pç",null,12,null,10,null,null,null,null,30,null,null,null,null,null,52]
["09.73","CURVA 90º SOLDÁVEL PVC 85MM, NORMAS:  NBR 5648","Pç.",null,30,null,null,null,null,null,null,15,null,null,null,null,null,45]
["09.74","CURVA 45º SOLDÁVEL PVC 110MM, NORMAS:  NBR 5648","Pç.",null,12,null,10,null,null,null,null,30,null,null,null,null,null,52]
["09.75","CURVA 90º SOLDÁVEL PVC 110MM, NORMAS:  NBR 5648","Pç.",null,40,null,null,null,null,null,null,20,null,null,null,null,null,60]
["09.76","JOELHO 45º SOLDAVEL PVC DE 20MM, NORMAS: NBR 5648","Pç.",null,null,50,50,null,50,null,null,20,null,null,null,50,200,420]
["09.77","JOELHO 90º SOLDÁVEL E COM ROSCA (LR) PVC 20MMX1/2” COM BUCHA LATÃO, NORMAS: NBR 5648","Pç.",3000,100,null,null,null,null,null,null,null,null,null,null,null,300,3400]
["09.78","JOELHO 90º SOLDÁVEL E COM ROSCA (LR) PVC 20MMX1/2”, NORMAS: NBR 5648","Pç",null,null,null,100,null,300,null,null,5,null,10,200,50,null,665]
["09.79","JOELHO 90º SOLDÁVEL PVC 20MM, NORMAS: NBR 5648","Pç.",4000,4000,null,100,200,500,null,1000,500,null,2000,800,200,500,13800]
["09.80","JOELHO 45º SOLDAVEL PVC DE 25MM, NORMAS: NBR 5648","Pç.",null,null,50,null,null,null,null,null,20,null,null,null,10,100,180]
["09.81","JOELHO 90º SOLDÁVEL E COM ROSCA (LR) PVC 25MMX1/2”, NORMAS: NBR 5648","Pç",null,null,null,50,null,100,null,null,10,null,null,null,null,null,160]
["09.82","JOELHO 90º SOLDÁVEL E COM ROSCA (LR) PVC 25MMX3/4”, COM BUCHA LATÃO NORMAS: NBR 5648","Pç.",null,50,null,null,null,null,null,null,null,null,null,null,null,null,50]
["09.83","JOELHO 90º SOLDÁVEL E COM ROSCA (LR) PVC 25MMX3/4”, NORMAS: NBR 5648","Pç.",null,null,null,50,10,100,null,null,10,null,null,null,null,null,170]
["09.84","JOELHO 90º SOLDÁVEL PVC 25MM, NORMAS: NBR 5648","Pç",null,800,50,50,null,200,null,100,100,null,50,20,null,400,1770]
["09.85","JOELHO 45º SOLDAVEL PVC DE 32MM, NORMAS:  NBR 5648","Pç.",null,null,null,20,null,50,null,null,20,null,100,null,10,30,230]
["09.86","JOELHO 90º SOLDÁVEL E COM ROSCA (LR) PVC 32MMX3/4”, NORMAS: NBR 5648","Pç",null,null,null,20,null,null,null,null,10,null,null,null,null,null,30]
["09.87","JOELHO 90º SOLDÁVEL PVC 32MM, NORMAS: NBR 5648","Pç.",null,200,null,20,null,100,null,50,100,null,10,30,null,250,760]
["09.88","JOELHO 45º SOLDAVEL PVC DE 40MM, NORMAS:  NBR 5648","Pç.",null,null,null,null,null,null,null,null,10,null,20,null,null,30,60]
["09.89","JOELHO 90º SOLDÁVEL PVC 40MM, NORMAS: NBR 5648","Pç.",null,100,20,null,null,null,null,30,10,null,null,10,null,250,420]
["09.90","JOELHO 45º SOLDAVEL PVC DE 50MM, NORMAS: NBR 5648","Pç.",null,null,null,20,null,null,null,null,10,null,null,null,null,200,230]
["09.91","JOELHO 90º SOLDÁVEL PVC 50MM, NORMAS:NBR 5648","Pç.",null,50,null,null,null,25,null,100,30,null,30,null,null,150,385]
["09.92","JOELHO 45º SOLDAVEL PVC DE 60MM, NORMAS:  NBR 5648","Pç.",null,null,null,20,null,null,null,null,20,null,5,null,null,20,65]
["09.93","JOELHO 90º SOLDÁVEL PVC 60MM, NORMAS: NBR 5648","Pç.",null,300,null,null,null,25,null,100,50,null,null,100,null,400,975]
["09.94","JOELHO 45º SOLDAVEL PVC DE 75MM, NORMAS:  NBR 5648","Pç.",null,null,null,null,null,null,null,null,null,null,5,null,null,null,5]
["09.95","JOELHO 90º SOLDÁVEL PVC 75MM, NORMAS: NBR 5648","Pç.",null,20,null,null,null,10,null,null,null,null,null,null,null,20,50]
["09.96","JOELHO 45º SOLDAVEL PVC DE 85MM, NORMAS: NBR 5648","Pç.",null,null,null,null,null,null,null,null,10,null,null,null,null,null,10]
["09.97","JOELHO 90º SOLDÁVEL PVC 85MM, NORMAS: NBR 5648","Pç.",null,20,null,null,null,10,null,null,15,null,10,20,null,20,95]
["09.98","JOELHO 45º SOLDAVEL PVC DE 110MM, NORMAS:  NBR 5648","Pç.",null,null,null,null,null,null,null,null,10,null,null,null,null,null,10]
["09.99","JOELHO 90º SOLDÁVEL PVC 110MM, NORMAS: NBR 5648","Pç.",null,20,null,null,null,10,null,null,10,null,null,10,null,null,50]
["09.100","LUVA DE CORRER PVC PARA TUBO SOLDAVEL 20MM, COM ANÉIS DE BORRACHA, NORMAS: NBR 5648","Pç.",null,500,100,50,null,300,null,30,500,30,null,100,50,500,2160]
["09.101","LUVA DE REDUÇÃO SOLDAVEL E COM ROSCA 20MM X 1/2\", NORMAS: NBR 5648","Pç.",null,null,null,100,null,null,null,null,null,null,null,100,null,0,200]
["09.102","LUVA SOLDÁVEL E COM ROSCA (LR) PVC 20MMX1/2”, NORMAS: NBR 5648","Pç.",null,2000,null,100,200,400,null,null,200,150,1000,500,null,0,4550]
["09.103","LUVA SOLDÁVEL E COM ROSCA(LR) PVC COM BUCHA LATÃO 20MMX1/2”, NORMAS: NBR 5648","Pç.",2000,1000,null,null,null,null,null,1000,null,null,null,null,null,0,4000]
["09.104","LUVA SOLDÁVEL PVC  20MM, NORMAS: NBR 5648","Pç.",2000,2000,null,100,500,500,null,1000,500,null,200,300,null,300,7400]
["09.105","LUVA DE CORRER PVC PARA TUBO SOLDAVEL 25MM, COM ANÉIS DE BORRACHA, NORMAS: NBR 5648","Pç.",null,300,null,50,null,200,null,30,100,10,null,50,null,300,1040]
["09.106","LUVA DE REDUÇÃO SOLDAVEL 25X20 MM, NORMAS: NBR 5648","Pç.",60,null,null,50,null,null,null,null,30,null,null,null,null,100,240]
["09.107","LUVA SOLDÁVEL E COM ROSCA (LR) PVC 25MMX1/2”, NORMAS: NBR 5648","Pç.",null,null,null,50,null,50,null,null,100,null,null,null,null,300,500]
["09.108","LUVA SOLDÁVEL E COM ROSCA(LR) PVC COM BUCHA LATÃO 25MMX1/2”, NORMAS: NBR 5648","Pç.",null,null,null,null,null,null,null,200,null,null,null,null,null,0,200]
["09.109","LUVA SOLDÁVEL E COM ROSCA(LR) PVC COM BUCHA LATÃO 25MMX3/4”, NORMAS: NBR 5648","Pç.",null,300,null,null,null,null,null,null,null,null,null,null,null,0,300]
["09.110","LUVA SOLDÁVEL PVC 25MM, NORMAS: NBR 5648","Pç",200,600,null,50,null,200,null,50,200,null,20,40,null,200,1560]
["09.111","LUVA DE CORRER PVC PARA TUBO SOLDAVEL 32MM, COM ANÉIS DE BORRACHA, NORMAS: NBR 5648","Pç.",null,200,20,50,30,200,null,30,100,null,null,100,50,200,980]
["09.112","LUVA DE REDUÇÃO SOLDAVEL 32X25 MM, NORMAS: NBR 5648","Pç.",null,null,null,50,null,null,null,null,30,null,null,null,null,100,180]
["09.113","LUVA DE REDUÇÃO SOLDAVEL E COM ROSCA 25MM X 1/2\", NORMAS: NBR 5648","Pç.",null,null,null,50,null,null,null,null,null,null,null,null,null,0,50]
["09.114","LUVA DE REDUÇÃO SOLDAVEL E COM ROSCA 32MM X 1\", NORMAS: NBR 5648","Pç.",null,null,null,null,null,null,null,null,null,null,null,30,null,0,30]
["09.115","LUVA SOLDÁVEL E COM ROSCA (LR) PVC 25MMX3/4”, NORMAS: NBR 5648","Pç.",null,300,null,50,null,50,null,null,100,null,null,null,null,200,700]
["09.116","LUVA SOLDÁVEL E COM ROSCA (LR) PVC COM BUCHA LATÃO 32MMX1”, NORMAS: NBR 5648","Pç.",null,100,null,null,null,null,null,null,null,null,null,null,null,0,100]
["09.117","LUVA SOLDÁVEL PVC 32MM, NORMAS: NBR 5648","Pç.",null,200,null,50,null,100,null,70,300,null,null,50,null,200,{"$f":"SUM(D223:Q223)","v":970}]
["09.118","LUVA DE CORRER PVC PARA TUBO SOLDAVEL 40MM, COM ANÉIS DE BORRACHA, NORMAS: NBR 5648","Pç.",null,100,null,null,null,10,null,null,70,null,5,50,null,200,435]
["09.119","LUVA DE REDUÇÃO SOLDAVEL 40X32 MM, NORMAS: NBR 5648","Pç.",null,null,null,null,null,null,null,null,10,null,null,null,null,100,110]
["09.120","LUVA SOLDÁVEL E COM ROSCA (LR) PVC 32MMX1”, NORMAS: NBR 5648","Pç.",null,200,null,20,null,null,null,null,50,null,null,null,null,200,470]
["09.121","LUVA SOLDÁVEL E COM ROSCA (LR) PVC 40MMX 1 1/4”, NORMAS: NBR 5648","Pç.",null,60,null,null,null,null,null,null,10,null,null,null,null,100,170]
["09.122","LUVA SOLDÁVEL PVC 40MM, NORMAS: NBR 5648","Pç.",null,20,null,null,null,20,null,20,10,null,5,10,null,200,285]
["09.123","LUVA DE CORRER PVC PARA TUBO SOLDAVEL 50MM, COM ANÉIS DE BORRACHA, NORMAS: NBR 5648","Pç.",null,50,null,10,null,50,null,30,50,null,null,null,null,200,390]
["09.124","LUVA DE REDUÇÃO SOLDAVEL 50X40 MM, NORMAS: NBR 5648","Pç.",null,null,null,null,null,null,null,null,20,null,null,null,null,100,120]
["09.125","LUVA SOLDÁVEL E COM ROSCA (LR) PVC 50MMX1 1/2\", NORMAS: NBR 5648","Pç",null,null,null,6,null,10,null,null,20,null,null,null,null,100,136]
["09.126","LUVA SOLDÁVEL PVC 50MM, NORMAS: NBR 5648","Pç.",null,10,null,10,null,25,null,100,30,null,null,null,null,200,375]
["09.127","LUVA DE CORRER PVC PARA TUBO SOLDAVEL 60MM, COM ANÉIS DE BORRACHA, NORMAS: NBR 5648","Pç.",null,1200,10,10,null,null,null,150,100,null,null,10,50,400,1930]
["09.128","LUVA DE REDUÇÃO SOLDAVEL 60X50 MM, NORMAS: NBR 5648","Pç",null,null,10,20,null,null,null,null,20,null,null,null,null,150,200]
["09.129","LUVA SOLDÁVEL PVC 60MM, NORMAS: NBR 5648","Pç.",null,300,null,10,null,50,null,100,40,null,null,null,null,0,500]
["09.130","LUVA DE REDUÇÃO SOLDAVEL 75X60 MM, NORMAS: NBR 5648","Pç",null,null,null,10,null,null,null,null,null,null,null,null,null,null,10]
["09.131","LUVA SOLDÁVEL PVC 75MM, NORMAS: NBR 5648","Pç.",null,20,null,null,null,20,null,null,null,null,null,null,null,0,40]
["09.132","LUVA DE REDUÇÃO SOLDAVEL 85X60 MM, NORMAS: NBR 5648","Pç",null,null,10,10,null,null,null,null,null,null,null,null,null,null,20]
["09.133","LUVA SOLDÁVEL PVC 85MM, NORMAS: NBR 5648","Pç.",null,20,null,10,null,20,null,null,10,null,null,null,null,0,60]
["09.134","LUVA DE REDUÇÃO SOLDAVEL 110X75 MM, NORMAS: NBR 5648","Pç.",null,null,null,10,null,null,null,null,10,null,null,null,null,null,20]
["09.135","LUVA SOLDÁVEL PVC 110MM, NORMAS: NBR 5648","Pç.",null,12,null,10,null,null,null,null,10,null,null,null,null,0,32]
["09.136","TE 90º SOLDÁVEL PVC 20MM, NORMAS:  NBR 5648","Pç.",null,100,50,50,null,100,null,null,50,20,50,200,50,300,970]
["09.137","TE 90º SOLDÁVEL PVC COM BUCHA LATÃO NA BOLSA CENTRAL 20MMX1/2”, NORMAS: NBR 5648","Pç.",null,50,null,null,null,null,null,null,null,null,null,40,null,0,90]
["09.138","TE 90º SOLDÁVEL PVC COM ROSCA NA BOLSA CENTRAL 20MMX1/2”, NORMAS: NBR 5648","Pç.",null,null,null,null,null,null,null,null,null,null,null,null,null,100,100]
["09.139","TE 90º REDUÇÃO SOLDÁVEL PVC 25 MMX 20MM, NORMAS:  NBR 5648","Pç.",null,null,null,null,null,null,null,null,null,null,null,null,null,150,150]
["09.140","TE 90º SOLDÁVEL PVC 25MM, NORMAS:  NBR 5648","Pç.",null,50,null,50,10,50,null,null,100,10,null,50,null,200,520]
["09.141","TE 90º SOLDÁVEL PVC COM BUCHA LATÃO NA BOLSA CENTRAL 25MMX3/4”, NORMAS: NBR 5648","Pç.",null,50,null,null,null,null,null,null,null,null,null,null,null,0,50]
["09.142","TE 90º SOLDÁVEL PVC COM ROSCA NA BOLSA CENTRAL 25MMX1/2”, NORMAS: NBR 5648","Pç.",null,null,null,null,null,null,null,null,null,null,null,null,null,100,100]
["09.143","TE 90º SOLDÁVEL PVC COM ROSCA NA BOLSA CENTRAL 25MMX3/4”, NORMAS: NBR 5648","Pç.",null,null,null,null,null,null,null,null,null,null,null,null,null,100,100]
["09.144","TE 90º REDUÇÃO SOLDÁVEL PVC 32 MMX 25MM, NORMAS:  NBR 5648","Pç.",null,null,null,null,null,null,null,null,50,null,null,40,null,100,190]
["09.145","TE 90º SOLDÁVEL PVC 32MM, NORMAS:  NBR 5648","Pç.",null,50,null,50,null,50,null,100,100,null,null,50,10,200,610]
["09.146","TE 90º SOLDÁVEL PVC COM ROSCA NA BOLSA CENTRAL 32MMX3/4”, NORMAS: NBR 5648","Pç.",null,null,null,null,null,null,null,null,null,null,null,null,null,100,100]
["09.147","TE 90º REDUÇÃO SOLDÁVEL PVC 40 MMX 25MM, NORMAS:  NBR 5648","PÇ",null,null,null,null,null,null,null,null,10,null,null,null,null,100,110]
["09.148","TE 90º REDUÇÃO SOLDÁVEL PVC 40 MMX 32MM, NORMAS:  NBR 5648","Pç.",null,null,null,null,null,null,null,null,10,null,null,null,null,100,110]
["09.149","TE 90º SOLDÁVEL PVC 40MM, NORMAS:  NBR 5648","Pç.",null,20,null,null,null,null,null,30,10,null,null,null,null,150,210]
["09.150","TE 90º REDUÇÃO SOLDÁVEL PVC 50 MMX 20MM, NORMAS:  NBR 5648","Pç.",null,null,null,null,null,null,null,null,20,null,null,null,null,100,120]
["09.151","TE 90º REDUÇÃO SOLDÁVEL PVC 50 MMX 25MM, NORMAS:  NBR 5648","Pç.",null,null,null,null,null,null,null,null,20,null,null,null,null,100,120]
["09.152","TE 90º REDUÇÃO SOLDÁVEL PVC 50 MMX 32MM, NORMAS:  NBR 5648","Pç.",null,null,null,null,null,null,null,null,20,null,null,null,null,100,120]
["09.153","TE 90º REDUÇÃO SOLDÁVEL PVC 50 MMX 40MM, NORMAS:  NBR 5648","Pç.",null,null,null,null,null,null,null,null,10,null,null,null,null,100,110]
["09.154","TE 90º REDUÇÃO SOLDÁVEL PVC 60 MMX 25MM, NORMAS:  NBR 5648","Pç.",null,null,null,null,null,null,null,null,20,null,null,null,null,100,120]
["09.155","TE 90º REDUÇÃO SOLDÁVEL PVC 60 MMX 50MM, NORMAS:  NBR 5648","Pç.",null,null,null,null,null,null,null,null,30,null,null,null,null,100,130]
["09.156","TE 90º SOLDÁVEL PVC 50MM, NORMAS:  NBR 5648","Pç.",null,null,null,10,null,10,null,100,20,null,null,null,null,150,290]
["09.157","TE 90º SOLDÁVEL PVC 60MM, NORMAS:  NBR 5648","Pç.",null,300,null,10,null,10,null,null,50,null,null,50,10,100,530]
["09.158","TE 90º REDUÇÃO SOLDÁVEL PVC 85 MMX 60MM, NORMAS:  NBR 5648","Pç.",null,null,null,null,null,null,null,null,30,null,null,null,null,0,30]
["09.159","TE 90º SOLDÁVEL PVC 75MM, NORMAS:  NBR 5648","Pç.",null,60,null,null,null,5,null,null,null,null,null,null,null,0,65]
["09.160","TE 90º SOLDÁVEL PVC 85MM, NORMAS:  NBR 5648","Pç.",null,30,null,null,null,5,null,null,30,null,null,15,null,0,80]
["09.161","TE 90º REDUÇÃO SOLDÁVEL PVC 110 MMX 60MM, NORMAS:  NBR 5648","Pç.",null,null,null,null,null,null,null,null,10,null,null,null,null,0,10]
["09.162","TE 90º SOLDÁVEL PVC 110MM, NORMAS:  NBR 5648","Pç.",null,50,null,null,null,5,null,null,50,null,null,10,null,0,115]
["09.163","UNIÃO SOLDÁVEL PVC 20MM, NORMAS: NBR 5648","Pç.",null,null,null,null,null,null,null,null,null,null,null,100,null,null,100]
["09.164","UNIÃO SOLDÁVEL PVC 25MM, NORMAS: NBR 5648","Pç.",null,null,null,null,null,null,null,null,null,null,null,20,null,null,20]
["09.165","UNIÃO SOLDÁVEL PVC 32MM, NORMAS: NBR 5648","Pç.",null,null,null,null,null,null,null,null,null,null,null,20,null,null,20]
["09.166","UNIÃO SOLDÁVEL PVC 40MM, NORMAS: NBR 5648","Pç.",null,null,null,null,null,null,null,null,null,null,null,20,null,null,20]
["09.167","UNIÃO SOLDÁVEL PVC 50MM, NORMAS: NBR 5648","Pç.",null,null,null,null,null,null,null,null,null,null,null,20,null,null,20]
["09.168","UNIÃO SOLDÁVEL PVC 60MM, NORMAS: NBR 5648","Pç.",null,null,null,null,null,null,null,null,null,4,3,30,null,0,37]
["09.169","UNIÃO SOLDÁVEL PVC 75MM, NORMAS: NBR 5648","Pç.",null,null,null,null,null,null,null,null,null,null,3,null,null,0,3]
["09.170","UNIÃO SOLDÁVEL PVC 85MM, NORMAS: NBR 5648","Pç.",null,null,null,null,null,null,null,null,null,null,3,3,null,0,6]
["09.171","UNIÃO SOLDÁVEL PVC 110MM, NORMAS: NBR 5648","Pç.",null,null,null,null,null,null,null,null,null,null,3,3,null,0,6]
[null,null,null,null,null,null,null,null,null,null,null,null,null,null,null,null,null,0]
[null,"LOTE 10: REGISTROS EM PVC",null,null,null,null,null,null,null,null,null,null,null,null,null,null,null,0]
["10.1","REGISTRO DE ESFERA EM PVC ROSCÁVEL 1/2MM, NORMAS: NBR 5626","Pç.",null,200,null,null,null,null,null,null,null,10,null,800,null,0,1010]
["10.2","REGISTRO DE ESFERA COM BORBOLETA EM PVC 1/2, NORMAS: NBR 11306","Pç.",null,500,null,null,null,null,null,null,40,null,null,null,100,400,1040]
["10.3","REGISTRO DE ESFERA ROSCA FÊMEA COM BORBOLETA EM PVC 1/2","Pç.",null,500,null,null,null,null,null,null,null,null,null,null,null,0,500]
["10.4","REGISTRO DE ESFERA EM PVC ROSCÁVEL 3/4MM, NORMAS: NBR 5626","Pç.",null,null,null,null,null,null,null,null,null,5,null,null,null,150,155]
["10.5","REGISTRO DE ESFERA COM BORBOLETA EM PVC 3/4, NORMAS: NBR 11306","Pç.",null,200,null,null,null,30,null,null,null,null,null,null,null,400,630]
["10.6","REGISTRO DE ESFERA ROSCA FÊMEA COM BORBOLETA EM PVC 3/4","Pç.",null,50,null,null,null,null,null,null,null,null,null,null,null,0,50]
["10.7","REGISTRO DE ESFERA EM PVC ROSCÁVEL 1”, NORMAS: NBR 5626","Pç.",null,null,null,null,null,null,null,null,null,null,null,null,null,150,150]
["10.8","REGISTRO DE ESFERA COM BORBOLETA EM PVC 1”, NORMAS: NBR 11306","Pç.",null,50,null,null,null,null,null,null,null,null,null,null,null,400,{"$f":"SUM(D287:Q287)","v":450}]
["10.9","REGISTRO DE ESFERA EM PVC ROSCÁVEL 1 1/4, NORMAS: NBR 5626","Pç.",null,null,null,null,null,null,null,null,null,null,null,null,null,50,50]
["10.10","REGISTRO DE ESFERA EM PVC ROSCÁVEL 1 1/2, NORMAS: NBR 5626","Pç.",null,null,null,null,null,null,null,null,null,null,null,null,null,50,50]
["10.11","REGISTRO DE ESFERA EM PVC ROSCÁVEL 2” NORMAS: NBR 5626","Pç.",null,20,null,null,null,5,null,null,null,4,null,null,null,150,179]
["10.12","REGISTRO DE ESFERA COM BORBOLETA EM PVC 2”, NORMAS: NBR 11306","Pç.",null,50,null,null,null,null,null,null,null,null,null,null,null,400,450]
["10.13","REGISTRO DE ESFERA EM PVC SOLDÁVEL 20MM, NORMAS: NBR 5626","Pç.",null,2000,null,200,null,null,null,50,null,10,500,null,50,0,2810]
["10.14","REGISTRO DE ESFERA  E UNIÃO EM PVC SOLDÁVEL 20MM, NORMAS: NBR 5626","Pç",null,1000,null,null,null,null,null,null,null,null,100,null,null,null,1100]
["10.15","REGISTRO DE ESFERA EM PVC SOLDÁVEL 25MM, NORMAS: NBR 5626","Pç.",null,1000,null,50,null,50,null,null,10,5,null,null,5,0,1120]
["10.16","REGISTRO DE ESFERA EM PVC SOLDÁVEL 32MM, NORMAS: NBR 5626","Pç.",null,500,null,50,null,20,null,50,10,null,null,null,null,100,730]
["10.17","REGISTRO DE ESFERA EM PVC SOLDÁVEL 40MM, NORMAS: NBR 5626","Pç.",null,100,null,null,null,5,null,null,5,null,null,null,null,100,210]
["10.18","REGISTRO DE ESFERA EM PVC SOLDÁVEL 50MM, NORMAS: NBR 5626","Pç.",null,null,null,null,null,5,null,30,10,null,5,null,null,100,150]
["10.19","REGISTRO DE ESFERA EM PVC SOLDÁVEL 60MM, NORMAS: NBR 5626","Pç.",null,50,null,null,null,5,null,50,10,6,5,null,10,100,236]
[null,null,null,null,null,null,null,null,null,null,null,null,null,null,null,null,null,0]
[null,"LOTE 11: CONEXÕES  PEAD",null,null,null,null,null,null,null,null,null,null,null,null,null,null,null,0]
["11.1","ADAPTADOR PARA PEAD EM PP-POLIPROPILENO DIÂMETRO 20MM X 1/2\", PN-10, CONFORME NBR-9798 ","Pç.",null,100,null,null,null,null,null,null,null,null,null,null,null,0,100]
["11.2","COTOVELO ADAPTADOR 90°PARA PEAD EM PP-POLIPROPILENO DIÂMETRO 20MM X 1/2\" RE PN-10, CONFORME NBR-9798 ","Pç.",null,300,null,null,null,null,null,null,null,null,null,null,null,0,300]
["11.3","COTOVELO ADAPTADOR 90°PARA PEAD EM PP-POLIPROPILENO DIÂMETRO 20MM X 1/2\" RI PN-10, CONFORME NBR-9798","Pç.",null,300,null,null,null,null,null,null,null,null,null,null,null,0,300]
["11.4","DERIVAÇÃO \"T\" PARA PEAD EM PP-POLIPROPILENO DIÂMETRO 20MM, CONFORME NBR-9798 ","Pç.",null,100,null,null,null,null,null,null,null,null,null,null,null,0,100]
["11.5","EXTREMIDADE(TUBETE, PORCA E ANEL) OITAVADA EM PP-POLIPROPILENO CURTA COM INSERTO METÁLICO DIÂMETRO 1/2\" CONFORME NBR 8194 ","Pç.",null,null,null,null,null,null,null,null,null,null,400,null,null,0,400]
["11.6","LUVA DE EMENDA EM PP-POLIPROPILENO PARA REPARO PEAD/PEAD DIAM. 20MM  X 20MM ","Pç.",null,400,null,null,null,null,null,null,null,null,null,null,null,0,400]
["11.7","LUVA DE EMENDA EM PP-POLIPROPILENO EM PP-POLIPROPILENO PARA REPARO PVC/PVC DIAM. 25MM  X 25MM ","Pç.",null,200,null,null,null,null,null,null,null,null,null,null,null,0,200]
["11.8","TUBETE MACIÇO EM PP 1/2\", PARA SUPRESSÃO DE LIGAÇÃO","Pç.",null,null,25,null,null,null,null,null,null,null,null,null,null,0,25]
["11.9","UNIÃO PARA PEAD EM PP DIAM. 20MM PN-10 CONFORME NBR-9798 ","Pç.",null,100,null,null,null,null,null,null,null,null,null,null,null,0,100]
[null,null,null,null,null,null,null,null,null,null,null,null,null,null,null,null,null,0]
[null,"LOTE 12: CONEXÕES PVC ROSCÁVEIS",null,null,null,null,null,null,null,null,null,null,null,null,null,null,null,0]
["12.1","ADAPTADOR EM PVC ROSCÁVEL COM ANEL 1/2\" PARA CAIXA D´ÁGUA","Pç.",null,20,null,null,null,null,null,null,null,null,null,null,null,20,{"$f":"SUM(D312:Q312)","v":40}]
["12.2","ADAPTADOR EM PVC ROSCÁVEL COM ANEL 3/4\" PARA CAIXA D´ÁGUA","Pç.",null,20,null,null,null,null,null,null,null,null,null,null,null,20,40]
["12.3","ADAPTADOR EM PVC ROSCÁVEL COM ANEL 1\" PARA CAIXA D´ÁGUA","Pç.",null,null,null,null,null,null,null,null,null,null,null,null,null,20,20]
["12.4","ADAPTADOR EM PVC ROSCÁVEL COM ANEL  1 1/4\" PARA CAIXA D´ÁGUA","Pç.",null,null,null,null,null,null,null,null,null,null,null,null,null,20,20]
["12.5","ADAPTADOR EM PVC ROSCÁVEL COM ANEL 1 1/2\" PARA CAIXA D´ÁGUA","Pç.",null,null,null,null,null,null,null,null,null,null,null,null,null,20,20]
["12.6","ADAPTADOR EM PVC ROSCÁVEL COM ANEL 2\" PARA CAIXA D´ÁGUA","Pç.",null,20,null,null,null,null,null,null,null,null,null,null,null,20,40]
["12.7","BUCHA EM PVC REDUÇÃO ROSCÁVEL CURTA PVC DE 3/4”X1/2 “, NORMAS: NBR 5648","Pç.",null,200,null,null,null,50,null,null,null,null,null,null,null,500,750]
["12.8","BUCHA EM PVC REDUÇÃO ROSCÁVEL CURTA PVC DE 1 1/4”X3/4 “, NORMAS: NBR 5648","Pç.",null,null,null,null,null,null,null,null,null,null,null,null,null,30,30]
["12.9","BUCHA EM PVC REDUÇÃO ROSCÁVEL CURTA PVC DE 1 1/2”X 1 “, NORMAS: NBR 5648","Pç.",null,null,null,null,null,null,null,null,null,null,null,null,null,20,20]
["12.10","BUCHA EM PVC REDUÇÃO ROSCÁVEL CURTA PVC DE 1 1/2”X1/2 “, NORMAS: NBR 5648","Pç",null,null,null,null,null,null,null,null,null,null,null,null,null,50,50]
["12.11","BUCHA EM PVC REDUÇÃO ROSCÁVEL CURTA PVC DE 1 1/2”X3/4 “, NORMAS: NBR 5648","Pç.",null,50,null,null,null,null,null,null,null,null,null,null,null,20,70]
["12.12","BUCHA EM PVC REDUÇÃO ROSCÁVEL CURTA PVC DE 1”X1/2 “, NORMAS: NBR 5648","Pç.",null,null,null,null,null,20,null,null,null,null,null,null,null,30,50]
["12.13","BUCHA EM PVC REDUÇÃO ROSCÁVEL CURTA PVC DE 1”X3/4 “, NORMAS: NBR 5648","Pç.",null,60,null,null,null,20,null,null,null,null,null,null,null,50,130]
["12.14","BUCHA EM PVC REDUÇÃO ROSCÁVEL CURTA PVC DE 2”X1 “, NORMAS: NBR 5648","Pç.",null,50,null,null,null,null,null,null,null,null,null,null,null,50,100]
["12.15","CAP EM PVC ROSCÁVEL DE 1/2”, NORMAS:  NBR 5648","Pç.",null,600,50,null,null,50,null,null,null,null,null,null,50,0,750]
["12.16","CAP EM PVC ROSCÁVEL DE 3/4”, NORMAS: NBR 5648","Pç.",null,300,50,null,null,50,null,null,null,null,null,null,null,150,550]
["12.17","CAP EM PVC ROSCÁVEL DE 1”, NORMAS:  NBR 5648","Pç.",null,100,null,null,null,null,null,null,null,null,null,null,null,100,200]
["12.18","CAP EM PVC ROSCÁVEL DE 1 1/4”, NORMAS: NBR 5648","Pç.",null,200,null,null,null,null,null,null,null,null,null,null,null,30,230]
["12.19","CAP EM PVC ROSCÁVEL DE 1 1/2”, NORMAS: NBR 5648","Pç.",null,null,null,null,null,null,null,null,null,null,null,null,null,30,30]
["12.20","CAP EM PVC ROSCÁVEL DE 2”, NORMAS: - NBR 5648","Pç.",null,50,null,null,null,null,null,null,null,null,null,null,null,50,100]
["12.21","CAP EM PVC ROSCÁVEL DE 2 1/2”, NORMAS: NBR 5648","Pç.",null,null,null,null,null,null,null,null,null,null,null,null,null,20,20]
["12.22","CAP EM PVC ROSCÁVEL DE 3”, NORMAS: NBR 5648","Pç.",null,null,null,null,null,null,null,null,null,null,null,null,null,10,10]
["12.23","CAP EM PVC ROSCÁVEL DE 4”, NORMAS: NBR 5648","Pç.",null,10,null,null,null,null,null,null,null,null,null,null,null,0,10]
["12.24","CURVA 90° EM PVC ROSCÁVEL DE 1/2”, NORMAS: NBR 5648","Pç.",null,100,null,null,null,null,null,null,null,null,null,null,null,0,100]
["12.25","CURVA 90° EM PVC ROSCÁVEL DE 3/4”, NORMAS: NBR 5648","Pç.",null,50,null,null,null,null,null,null,null,null,null,null,null,0,50]
["12.26","CURVA 90° EM PVC ROSCÁVEL DE 1”, NORMAS: NBR 5648","Pç.",null,20,null,null,null,null,null,null,null,null,null,null,null,0,20]
["12.27","CURVA 90°EM PVC ROSCÁVEL DE 2”, NORMAS: - NBR 5648","Pç.",null,10,null,null,null,null,null,null,null,null,null,null,null,0,10]
["12.28","CURVA 90° EM PVC ROSCÁVEL DE 2 1/2”, NORMAS: NBR 5648","Pç.",null,null,null,null,null,null,null,null,null,null,null,null,null,0,0]
["12.29","JOELHO 90º EM PVC ROSCÁVEL DE 1/2”, NORMAS:  NBR 5648","Pç.",null,600,null,null,null,50,null,null,null,null,null,null,200,0,850]
["12.30","JOELHO 90º EM PVC ROSCÁVEL DE 3/4”, NORMAS: NBR 5648","Pç.",null,200,null,null,null,50,null,null,null,null,null,null,null,300,550]
["12.31","JOELHO DE REDUÇÃO 90° EM PVC 3/4”X 1/2\", NORMAS: NBR 5648","Pç.",null,null,null,null,null,null,null,null,20,null,null,null,null,300,320]
["12.32","JOELHO 90º  EM PVC ROSCÁVEL DE 1”, NORMAS:  NBR 5648","Pç.",null,60,null,null,null,10,null,null,null,null,null,null,null,150,220]
["12.33","JOELHO 90º  EM PVC ROSCÁVEL DE 1 1/2”, NORMAS: NBR 5648","Pç.",null,null,null,null,null,null,null,null,null,null,null,null,null,50,50]
["12.34","JOELHO DE REDUÇÃO90°   EM PVC 1” X 3/4”, NORMAS: NBR 5648","Pç.",null,null,null,null,null,null,null,null,20,null,null,null,null,50,70]
["12.35","JOELHO 45º  EM PVC ROSCÁVEL DE 2”, NORMAS: - NBR 5648","Pç.",null,null,null,null,null,null,null,null,null,null,null,null,null,20,20]
["12.36","JOELHO 90º  EM PVC ROSCÁVEL DE 2”, NORMAS: - NBR 5648","Pç.",null,null,null,null,null,null,null,null,null,null,null,null,null,150,150]
["12.37","JOELHO 90º  EM PVC ROSCÁVEL DE 2 1/2”, NORMAS: NBR 5648","Pç.",null,null,null,null,null,null,null,null,null,null,null,null,null,50,50]
["12.38","JOELHO 90º  EM PVC ROSCÁVEL DE 3”, NORMAS: NBR 5648","Pç.",null,null,null,null,null,null,null,null,null,null,null,null,null,20,20]
["12.39","JUNÇÃO 45º  EM PVC ROSCÁVEL DE 2”, NORMAS: - NBR 5648","Pç.",null,null,null,null,null,null,null,null,null,null,null,null,20,0,20]
["12.40","LUVA DE CORRER EM PVC PARA TUBO ROSCÁVEL DE 1/2”, NORMAS:  NBR 5648","Pç.",null,100,20,null,null,50,null,null,null,null,null,null,null,500,{"$f":"SUM(D351:Q351)","v":670}]
["12.41","LUVA EM PVC ROSCÁVEL DE 1/2”, NORMAS:  NBR 5648","Pç.",null,200,200,null,null,200,null,null,null,null,null,null,200,0,800]
["12.42","LUVA DE CORRER EM PVC PARA TUBO ROSCÁVEL DE 3/4”, NORMAS: NBR 5648","Pç.",null,100,null,null,null,50,null,null,null,null,null,null,null,300,450]
["12.43","LUVA DE REDUÇÃO EM PVC 3/4”X 1/2\", NORMAS: NBR 5648","Pç.",null,null,null,null,null,null,null,null,null,null,null,null,null,400,400]
["12.44","LUVA EM PVC ROSCÁVEL DE 3/4”, NORMAS: NBR 5648","Pç.",null,200,null,null,null,100,null,null,null,null,null,null,null,200,500]
["12.45","LUVA DE CORRER EM PVC PARA TUBO ROSCÁVEL DE 1”, NORMAS:  NBR 5648","Pç.",null,20,null,null,null,50,null,null,null,null,null,null,null,100,170]
["12.46","LUVA DE REDUÇÃO EM PVC 1” X 3/4”, NORMAS: NBR 5648","Pç.",null,null,null,null,null,null,null,null,null,null,null,null,null,250,250]
["12.47","LUVA EM PVC ROSCÁVEL DE 1”, NORMAS:  NBR 5648","Pç.",null,100,null,null,null,20,null,null,null,null,null,null,null,150,270]
["12.48","LUVA DE CORRER EM PVC PARA TUBO ROSCÁVEL DE 1 1/4”, NORMAS: NBR 5648","Pç.",null,null,null,null,null,null,null,null,null,null,null,null,null,50,50]
["12.49","LUVA EM PVC ROSCÁVEL DE 1 1/4”, NORMAS: NBR 5648","Pç.",null,null,null,null,null,null,null,null,null,null,null,null,null,50,50]
["12.50","LUVA DE CORRER EM PVC PARA TUBO ROSCÁVEL DE 1 1/2”, NORMAS: NBR 5648","Pç.",null,null,null,null,null,10,null,null,null,null,null,null,null,50,60]
["12.51","LUVA EM PVC ROSCÁVEL DE 1 1/2”, NORMAS: NBR 5648","Pç.",null,null,null,null,null,10,null,null,null,null,null,null,null,100,110]
["12.52","LUVA DE CORRER EM PVC PARA TUBO ROSCÁVEL DE 2”, NORMAS: - NBR 5648","Pç.",null,null,null,null,null,10,null,null,null,null,null,null,null,0,10]
["12.53","LUVA EM PVC ROSCÁVEL DE 2”, NORMAS: - NBR 5648","Pç.",null,50,null,null,null,10,null,null,null,null,null,null,null,70,130]
["12.54","LUVA EM PVC ROSCÁVEL DE 2 1/2”, NORMAS: NBR 5648","Pç.",null,null,null,null,null,null,null,null,null,null,null,null,null,30,30]
["12.55","LUVA EM PVC ROSCÁVEL DE 3”, NORMAS: NBR 5648","Pç.",null,null,null,null,null,10,null,null,null,null,null,null,null,30,40]
["12.56","LUVA EM PVC ROSCÁVEL DE 4”, NORMAS: NBR 5648","Pç.",null,10,null,null,null,null,null,null,null,null,null,null,null,0,10]
["12.57","NIPEL EM PVC ROSCÁVEL DE 1/2”, NORMAS:  NBR 5648","Pç.",null,300,200,null,20,null,null,null,null,null,null,50,30,null,600]
["12.58","NIPEL EM PVC ROSCÁVEL DE 3/4”, NORMAS: NBR 5648","Pç.",null,100,50,null,null,null,null,null,null,null,null,10,null,250,410]
["12.59","NIPEL EM PVC ROSCÁVEL DE 1”, NORMAS:  NBR 5648","Pç.",null,30,null,null,null,null,null,null,null,null,null,null,null,200,230]
["12.60","NIPEL EM PVC ROSCÁVEL DE 1 1/4”, NORMAS: NBR 5648","Pç.",null,null,null,null,null,null,null,null,null,null,null,null,null,50,50]
["12.61","NIPEL EM PVC ROSCÁVEL DE 1 1/2”, NORMAS: NBR 5648","Pç.",null,null,null,null,null,null,null,null,null,null,null,null,null,70,70]
["12.62","NIPEL EM PVC ROSCÁVEL DE 2”, NORMAS: - NBR 5648","Pç.",null,20,10,null,null,null,null,null,null,null,null,null,null,70,100]
["12.63","NIPEL EM PVC ROSCÁVEL DE 2 1/2”, NORMAS: NBR 5648","Pç.",null,null,null,null,null,null,null,null,null,null,null,null,null,50,50]
["12.64","NIPEL EM PVC ROSCÁVEL DE 3”, NORMAS: NBR 5648","Pç.",null,null,null,null,null,null,null,null,null,null,null,null,null,30,30]
["12.65","NIPEL EM PVC ROSCÁVEL DE 4”, NORMAS: NBR 5648","Pç.",null,null,null,null,null,null,null,null,null,null,null,null,null,15,15]
["12.66","PLUG EM PVC ROSCÁVEL DE 1/2”, NORMAS:  NBR 5648","Pç.",null,50,100,null,null,null,null,null,null,null,null,null,80,200,430]
["12.67","PLUG EM PVC ROSCÁVEL DE 3/4”, NORMAS: NBR 5648","Pç.",null,300,null,null,null,null,null,200,null,null,null,null,null,150,650]
["12.68","PLUG EM PVC ROSCÁVEL DE 1”, NORMAS:  NBR 5648","Pç.",null,50,null,null,null,null,null,null,null,null,null,10,null,50,110]
["12.69","PLUG EM PVC ROSCÁVEL DE 2”, NORMAS: - NBR 5648","Pç.",null,10,null,null,null,null,null,null,null,null,null,null,null,20,30]
["12.70","TÊ EM PVC ROSCÁVEL DE 1/2”, NORMAS:  NBR 5648","Pç.",null,50,null,null,null,null,null,null,null,null,null,null,null,250,300]
["12.71","TÊ EM PVC ROSCÁVEL DE 3/4”, NORMAS: NBR 5648","Pç.",null,50,null,null,null,null,null,null,null,null,null,null,null,100,150]
["12.72","TÊ EM PVC ROSCÁVEL DE 1”, NORMAS:  NBR 5648","Pç.",null,50,null,null,null,null,null,null,null,null,null,null,null,100,150]
["12.73","TÊ EM PVC ROSCÁVEL DE 1 1/2”, NORMAS: NBR 5648","Pç.",null,null,null,null,null,null,null,null,null,null,null,null,null,0,0]
["12.74","TÊ EM PVC ROSCÁVEL DE 2”, NORMAS: - NBR 5648","Pç.",null,30,null,null,null,null,null,null,null,null,null,null,null,30,60]
["12.75","TÊ EM PVC ROSCÁVEL DE 3”, NORMAS: NBR 5648","Pç.",null,null,null,null,null,null,null,null,null,null,null,null,null,10,10]
["12.76","UNIÃO EM PVC ROSCÁVEL DE 1/2”, NORMAS:  NBR 5648","Pç.",null,100,null,null,null,null,null,null,null,null,null,null,100,700,900]
["12.77","UNIÃO EM PVC ROSCÁVEL DE 3/4”, NORMAS: NBR 5648","Pç.",null,50,null,null,null,null,null,null,null,null,null,null,null,300,350]
["12.78","UNIÃO EM PVC ROSCÁVEL DE 1”, NORMAS:  NBR 5648","Pç.",null,null,null,null,null,null,null,null,null,null,null,null,null,150,150]
["12.79","UNIÃO EM PVC ROSCÁVEL DE 1 1/4”, NORMAS: NBR 5648","Pç.",null,null,null,null,null,null,null,null,null,null,null,null,null,20,20]
["12.80","UNIÃO EM PVC ROSCÁVEL DE 1 1/2”, NORMAS: NBR 5648","Pç.",null,null,null,null,null,null,null,null,null,null,null,null,null,30,30]
["12.81","UNIÃO EM PVC ROSCÁVEL DE 2”, NORMAS: - NBR 5648","Pç.",null,null,null,null,null,null,null,null,null,null,2,null,null,30,32]
["12.82","UNIÃO EM PVC ROSCÁVEL DE 2 1/2”, NORMAS: NBR 5648","Pç.",null,null,null,null,null,null,null,null,null,null,2,null,null,20,22]
["12.83","UNIÃO EM PVC ROSCÁVEL DE 3”, NORMAS: NBR 5648","Pç.",null,null,null,null,null,null,null,null,null,null,null,null,null,15,15]
["12.84","UNIÃO EM PVC ROSCÁVEL DE 4”, NORMAS: NBR 5648","Pç.",null,null,null,null,null,null,null,null,null,null,2,null,null,0,2]
[null,null,null,null,null,null,null,null,null,null,null,null,null,null,null,null,null,0]
[null,"LOTE 13: TUBOS EM PVC COLETORES ESGOTO OCRE",null,null,null,null,null,null,null,null,null,null,null,null,null,null,null,0]
["13.1","TUBO PVC LISO ESGOTO OCRE JEI/JERI 100MM X 6 METROS, C/ANEL DE BORRACHA, NORMAS: - NBR 7362-1","Tubo",150,null,10,null,null,null,null,null,100,10,30,null,null,400,700]
["13.2","TUBO PVC LISO ESGOTO OCRE JEI/JERI 150MM X 6 METROS, C/ANEL DE BORRACHA, NORMAS: - NBR 7362-1","Tubo",600,700,null,100,70,null,null,null,50,30,120,50,300,800,2820]
["13.3","TUBO PVC LISO ESGOTO OCRE JEI/JERI 200MM X 6 METROS, C/ANEL DE BORRACHA, NORMAS: - NBR 7362-1","Tubo",80,10,null,100,null,null,null,null,30,null,null,null,null,400,620]
["13.4","TUBO PVC LISO ESGOTO OCRE JEI/JERI 250MM X 6 METROS, C/ANEL DE BORRACHA, NORMAS: - NBR 7362-1","Tubo",null,null,null,50,null,null,null,null,null,5,null,null,null,50,105]
["13.5","TUBO PVC LISO ESGOTO OCRE JEI/JERI 300MM X 6 METROS, C/ANEL DE BORRACHA, NORMAS: - NBR 7362-1","Tubo",null,null,null,30,null,null,null,null,null,null,null,null,null,200,230]
[null,null,null,null,null,null,null,null,null,null,null,null,null,null,null,null,null,0]
[null,"LOTE 14: TUBOS EM PVC ESGOTO  PRIMÁRIO(BRANCO)",null,null,null,null,null,null,null,null,null,null,null,null,null,null,null,0]
["14.1","TUBO PVC PONTA/BOLSA JE ESGOTO PRIMÁRIO DN 40MM X 06 METROS, C/ANEL DE BORRACHA, NORMAS:  NBR 5688","Tubo",null,120,null,null,null,null,null,null,null,null,null,null,null,50,170]
["14.2","TUBO PVC PONTA/BOLSA JE ESGOTO PRIMÁRIO DN 50MM X 06 METROS, C/ANEL DE BORRACHA, NORMAS: NBR 5688","Tubo",null,20,null,null,null,null,null,null,null,null,null,null,null,30,50]
["14.3","TUBO PVC PONTA/BOLSA JE ESGOTO PRIMÁRIO DN 75MM X 06 METROS, C/ANEL DE BORRACHA, NORMAS: NBR 5688","Tubo",null,null,null,null,null,null,null,null,null,null,null,null,null,50,50]
["14.4","TUBO PVC PONTA/BOLSA JE ESGOTO PRIMARIO DN100 X 06 METROS, C/ANEL DE BORRACHA, NORMAS: NBR 5688","Tubo",400,800,null,200,null,null,null,250,200,50,50,null,200,400,2550]
["14.5","TUBO PVC PONTA/BOLSA JE ESGOTO PRIMÁRIO DN150MM X 06 METROS, C/ANEL DE BORRACHA, NORMAS: NBR 5688","Tubo",null,10,null,null,null,null,null,150,100,null,30,100,null,30,420]
["14.6","TUBO PVC PONTA/BOLSA JE ESGOTO PRIMÁRIO DN 200MM X 06 METROS, C/ANEL DE BORRACHA, NORMAS: NBR 5688","Tubo",null,null,null,null,null,null,null,null,10,null,20,100,null,30,160]
[null,null,null,null,null,null,null,null,null,null,null,null,null,null,null,null,null,0]
[null,"LOTE 15: CONEXÕES EM PVC ESGOTO PRIMÁRIO(BRANCO)",null,null,null,null,null,null,null,null,null,null,null,null,null,null,null,0]
["15.1","ADAPTADOR PVC BOLSA ELÁSTICA ESGOTO PRIMÁRIO 100MMX PONTA COLETOR ESGOTO OCRE 110MM, NORMAS: NBR 5688","Pç.",250,100,null,null,null,50,null,null,10,10,30,null,null,300,750]
["15.2","ADAPTADOR PVC BOLSA ELÁSTICA ESGOTO PRIMÁRIO 150MMX PONTA COLETOR ESGOTO OCRE 110MM, NORMAS: NBR 5688","Pç.",null,null,null,null,null,null,null,null,10,null,null,null,null,0,10]
["15.3","BUCHA PVC DE REDUÇÃO LONGA ESGOTO PRIMÁRIO SÉRIE NORMAL 50MM X 40MM, NORMAS: NBR 5688","Pç.",null,null,null,null,null,20,null,null,null,null,null,null,null,0,{"$f":"SUM(D415:Q415)","v":20}]
["15.4","CAP PVC ESGOTO PRIMÁRIO SÉRIE NORMAL 40MM, COM ANÉIS, NORMAS: NBR 5688","Pç.",null,null,null,null,null,null,null,null,null,null,null,null,null,20,20]
["15.5","CAP PVC ESGOTO PRIMÁRIO SÉRIE NORMAL 50MM, COM ANÉIS, NORMAS: NBR 5688","Pç.",null,null,null,null,null,10,null,null,null,null,null,null,null,20,30]
["15.6","CAP PVC ESGOTO PRIMÁRIO SÉRIE NORMAL 75MM, COM ANÉIS, NORMAS: NBR 5688","Pç.",null,null,null,null,null,10,null,null,null,null,null,null,null,20,30]
["15.7","CAP PVC ESGOTO PRIMÁRIO SÉRIE NORMAL 100MM, COM ANÉIS, NORMAS: NBR5688","Pç.",60,100,null,null,null,10,null,null,50,10,50,null,null,100,380]
["15.8","CAP PVC ESGOTO PRIMÁRIO SÉRIE NORMAL 150MM, COM ANÉIS,  NORMAS:NBR5688","Pç.",null,null,null,null,null,5,null,null,20,null,10,null,null,10,45]
["15.9","CAP PVC ESGOTO PRIMÁRIO SÉRIE NORMAL 200MM, COM ANÉIS, NORMAS: NBR5688","Pç.",null,null,null,null,null,null,null,null,10,null,null,null,null,10,20]
["15.10","CURVA CURTA  90° PVC ESGOTO PRIMÁRIO SÉRIE NORMAL 40MM, COM ANÉIS, NORMAS: NBR 5688","Pç.",null,50,null,null,null,null,null,null,null,null,null,null,null,0,50]
["15.11","CURVA LONGA 90° PVC ESGOTO PRIMÁRIO SÉRIE NORMAL 40MM, COM ANÉIS, NORMAS: NBR 5688","Pç.",null,100,null,null,null,null,null,null,null,null,null,null,null,0,100]
["15.12","CURVA CURTA 45° PVC ESGOTO PRIMÁRIO SÉRIE NORMAL DN 100MM, COM ANÉIS,  NORMAS: NBR 5688","Pç.",30,null,null,null,null,null,null,null,null,null,null,null,null,null,30]
["15.13","CURVA CURTA 90° PVC ESGOTO PRIMÁRIO SÉRIE NORMAL DN 100MM, COM ANÉIS, NORMAS: NBR 5688","Pç.",null,500,null,50,null,null,null,null,50,20,10,null,null,150,780]
["15.14","CURVA LONGA 45° PVC ESGOTO PRIMÁRIO SÉRIE NORMAL DN 100MM, COM ANÉIS,  NORMAS: NBR 5688","Pç.",80,50,null,20,null,10,null,null,20,null,null,null,null,0,180]
["15.15","CURVA LONGA 90° PVC ESGOTO PRIMÁRIO SÉRIE NORMAL DN 100MM, COM ANÉIS,  NORMAS: NBR 5688","Pç.",120,null,null,null,null,10,null,null,50,null,null,null,null,0,180]
["15.16","CURVA LONGA 45° PVC ESGOTO PRIMÁRIO SÉRIE NORMAL DN 150MM, COM ANÉIS,  NORMAS: NBR 5688","Pç.",null,null,null,10,null,null,null,null,10,null,null,null,null,0,20]
["15.17","CURVA LONGA 90° PVC ESGOTO PRIMÁRIO SÉRIE NORMAL DN 150MM, COM ANÉIS,  NORMAS: NBR 5688","Pç.",null,null,null,null,null,10,null,null,5,null,null,null,null,0,15]
["15.18","CURVA LONGA 45° PVC ESGOTO PRIMÁRIO SÉRIE NORMAL DN 200MM, COM ANÉIS,  NORMAS: NBR 5688","Pç.",null,null,null,6,null,null,null,null,5,null,null,null,null,0,11]
["15.19","CURVA LONGA 90° PVC ESGOTO PRIMÁRIO SÉRIE NORMAL 200MM, COM ANÉIS, NORMAS: NBR 5688","Pç.",null,null,null,null,null,null,null,null,5,null,null,null,null,0,5]
["15.20","JOELHO 90° PVC ESGOTO PRIMÁRIO SÉRIE NORMAL 40MM, COM ANÉIS, NORMAS: NBR 5688","Pç.",null,150,null,null,null,null,null,null,null,null,null,null,100,100,350]
["15.21","JOELHO 90° PVC ESGOTO PRIMÁRIO SÉRIE NORMAL 50MM, COM ANÉIS, NORMAS: NBR 5688","Pç.",null,null,null,null,null,null,null,null,null,null,null,null,null,100,100]
["15.22","JOELHO 90° PVC ESGOTO PRIMÁRIO SÉRIE NORMAL 75MM, COM ANÉIS, NORMAS: NBR 5688","Pç.",null,null,null,null,null,null,null,null,null,null,null,null,null,100,100]
["15.23","JOELHO 45° PVC ESGOTO PRIMÁRIO SÉRIE NORMAL 100MM, COM ANÉIS, NORMAS: NBR 5688","Pç.",null,null,null,20,null,null,null,null,20,20,20,100,50,100,330]
["15.24","JOELHO 90° PVC ESGOTO PRIMÁRIO SÉRIE NORMAL DN 100MM, COM ANÉIS, NORMAS: NBR 5688","Pç.",250,400,null,null,null,null,null,150,20,20,100,null,null,500,1440]
["15.25","JOELHO 45° PVC ESGOTO PRIMÁRIO SÉRIE NORMAL 150MM, COM ANÉIS, NORMAS: NBR 5688","Pç.",null,null,4,10,null,null,null,null,10,null,10,50,null,0,84]
["15.26","JOELHO 90° PVC ESGOTO PRIMÁRIO SÉRIE NORMAL DN 150MM, COM ANÉIS, NORMAS: NBR 5688","Pç.",null,10,null,10,null,null,null,50,82,null,10,null,null,50,212]
["15.27","JOELHO 45° PVC ESGOTO PRIMÁRIO SÉRIE NORMAL 200MM, COM ANÉIS, NORMAS: NBR 5688","Pç.",null,null,null,10,null,null,null,null,5,null,null,null,null,0,15]
["15.28","JOELHO 90° PVC ESGOTO PRIMÁRIO SÉRIE NORMAL DN 200MM, COM ANÉIS, NORMAS: NBR 5688","Pç.",null,null,null,null,null,null,null,null,5,null,null,null,null,0,5]
["15.29","JUNÇÃO SIMPLES PVC, ESGOTO PRIMÁRIO SÉRIE NORMAL 100MMX100MM, COM ANÉIS, NORMAS: NBR 5688","Pç.",null,null,null,null,null,null,null,null,null,null,10,null,null,100,110]
["15.30","JUNÇÃO SIMPLES PVC, ESGOTO PRIMÁRIO SÉRIE NORMAL 150MMX100MM, COM ANÉIS, NORMAS: NBR 5688","Pç.",null,null,null,null,null,null,null,null,null,null,5,null,null,0,5]
["15.31","JUNÇÃO SIMPLES PVC, ESGOTO PRIMÁRIO SÉRIE NORMAL 150MMX150MM, COM ANÉIS, NORMAS: NBR 5688","Pç.",null,null,null,null,null,null,null,null,null,null,5,null,null,0,5]
["15.32","LUVA DE CORRER PVC ESGOTO PRIMÁRIO SÉRIE NORMAL 40MM, COM ANÉIS, NORMAS: NBR 5688","Pç.",null,100,null,null,null,null,null,null,null,null,null,null,null,0,100]
["15.33","LUVA SIMPLES PVC ESGOTO PRIMÁRIO SÉRIE NORMAL 40MM, COM ANÉIS, NORMAS: NBR 5688","Pç.",null,50,null,null,null,null,null,null,null,null,null,null,null,0,50]
["15.34","LUVA DE CORRER PVC ESGOTO PRIMÁRIO SÉRIE NORMAL 75MM, COM ANÉIS, NORMAS: NBR 5688","Pç.",null,null,null,null,null,50,null,null,null,null,null,null,null,0,50]
["15.35","LUVA SIMPLES PVC ESGOTO PRIMÁRIO SÉRIE NORMAL 75MM, COM ANÉIS, NORMAS: NBR 5688","Pç.",null,null,null,null,null,30,null,null,null,null,null,null,null,0,30]
["15.36","LUVA DE CORRER PVC ESGOTO PRIMÁRIO SÉRIE NORMAL DN 100MM, COM ANÉIS,  NORMAS: NBR 5688","Pç.",250,400,null,null,null,100,null,null,100,null,50,null,200,0,1100]
["15.37","LUVA SIMPLES PVC ESGOTO PRIMÁRIO SÉRIE NORMAL DN 100MM, COM ANÉIS,  NORMAS: NBR 5688","Pç.",100,400,null,null,null,100,null,null,100,null,null,null,null,0,700]
["15.38","LUVA DE CORRER PVC ESGOTO PRIMÁRIO SÉRIE NORMAL DN 150MM, COM ANÉIS,  NORMAS: NBR 5688","Pç.",null,10,null,null,null,10,null,null,50,null,20,null,30,0,120]
["15.39","LUVA SIMPLES PVC ESGOTO PRIMÁRIO SÉRIE NORMAL DN 150MM, COM ANÉIS,  NORMAS: NBR 5688","Pç.",null,null,null,null,null,5,null,null,10,null,null,null,null,0,15]
["15.40","LUVA DE CORRER PVC ESGOTO PRIMÁRIO SÉRIE NORMAL 200MM, COM ANÉIS, NORMAS: NBR 5688","Pç.",null,null,null,null,null,5,null,null,10,null,5,null,null,0,20]
["15.41","LUVA SIMPLES PVC ESGOTO PRIMÁRIO SÉRIE NORMAL 200MM, COM ANÉIS, NORMAS: NBR 5688","Pç.",null,null,null,null,null,null,null,null,5,null,null,null,null,0,5]
["15.42","REDUÇÃO EXCÊNTRICA PVC, ESGOTO PRIMÁRIO SÉRIE NORMAL 100MMX50MM, COM ANÉIS, NORMAS: NBR 5688","Pç.",null,null,null,null,null,null,null,null,null,null,5,null,null,20,25]
["15.43","REDUÇÃO EXCÊNTRICA PVC, ESGOTO PRIMÁRIO SÉRIE NORMAL 100MMX75MM, COM ANÉIS, NORMAS: NBR 5688","Pç.",null,null,null,null,null,20,null,null,null,null,null,null,null,50,70]
["15.44","REDUÇÃO CONCÊNTRICA PVC, ESGOTO PRIMÁRIO SÉRIE NORMAL 150MMX100MM, COM ANÉIS, NORMAS: NBR 5688","Pç.",null,null,null,null,null,null,null,null,20,null,null,null,null,50,70]
["15.45","REDUÇÃO EXCÊNTRICA PVC, ESGOTO PRIMÁRIO SÉRIE NORMAL 150MMX100MM, COM ANÉIS, NORMAS: NBR 5688","Pç.",null,null,null,null,null,20,null,null,20,null,10,null,null,50,100]
["15.46","REDUÇÃO EXCÊNTRICA PVC, ESGOTO PRIMÁRIO SÉRIE NORMAL 200MMX150MM, COM ANÉIS, NORMAS: NBR 5688","Pç.",null,null,null,null,null,null,null,null,20,null,null,null,null,null,20]
["15.47","TÊ PVC, ESGOTO PRIMÁRIO SÉRIE NORMAL 50MMX50MM, COM ANÉIS, NORMAS: NBR 5688","Pç.",null,20,null,null,null,null,null,null,null,null,null,null,null,50,70]
["15.48","TÊ PVC ESGOTO PRIMÁRIO SÉRIE NORMAL 75MMX50MM, COM ANÉIS, NORMAS: NBR 5688","Pç.",null,null,null,null,null,null,null,null,null,null,null,null,null,50,50]
["15.49","TÊ PVC ESGOTO PRIMÁRIO SÉRIE NORMAL 75MMX75MM, COM ANÉIS, NORMAS: NBR 5688","Pç.",null,null,null,null,null,20,null,null,null,null,null,null,null,20,40]
["15.50","TÊ PVC ESGOTO PRIMÁRIO SÉRIE NORMAL, 75MM X 75MM C/ANIES NORMA NBR-5688","Pç.",null,null,null,null,null,null,null,null,null,null,null,null,null,50,50]
["15.51","TÊ PVC ESGOTO PRIMÁRIO SÉRIE NORMAL 100MMX50MM, COM ANÉIS, NORMAS: NBR 5688","Pç.",null,null,null,null,null,10,null,null,null,null,null,null,null,15,25]
["15.52","TÊ PVC ESGOTO PRIMÁRIO SÉRIE NORMAL 100MMX75MM, COM ANÉIS, NORMAS: NBR 5688","Pç.",null,null,null,null,null,10,null,null,null,null,null,null,null,20,30]
["15.53","TÊ PVC ESGOTO PRIMÁRIO SÉRIE NORMAL, 100MM X 100MM C/ANIES NORMA NBR-5688","Pç.",null,null,null,null,null,null,null,null,null,10,40,null,15,100,165]
["15.54","TÊ PVC, ESGOTO PRIMÁRIO SÉRIE NORMAL 100MMX100MM, COM ANÉIS, NORMAS: NBR 5688","Pç.",80,20,20,null,null,null,null,50,50,null,40,null,15,100,375]
["15.55","TÊ PVC ESGOTO PRIMÁRIO SÉRIE NORMAL 150MMX100MM, COM ANÉIS, NORMAS: NBR 5688","Pç.",null,null,null,null,null,5,null,30,50,null,5,null,null,0,90]
["15.56","TÊ PVC ESGOTO PRIMÁRIO SÉRIE NORMAL 150MMX150MM, COM ANÉIS, NORMAS: NBR 5688","Pç.",null,null,null,null,null,10,null,30,20,null,null,null,null,0,60]
["15.57","TÊ PVC CURTO REDUÇÃO ESGOTO PRIMÁRIO SÉRIE NORMAL 200MMX100MM, COM ANÉIS, NORMAS: NBR 5688","Pç.",null,null,null,null,null,null,null,null,10,null,null,null,null,0,10]
["15.58","TÊ PVC CURTO REDUÇÃO ESGOTO PRIMÁRIO SÉRIE NORMAL 200MMX150MM, COM ANÉIS, NORMAS: NBR 5688","Pç.",null,null,null,null,null,null,null,null,5,null,null,null,null,0,5]
["15.59","TÊ PVC ESGOTO PRIMÁRIO SÉRIE NORMAL 200MMX200MM, COM ANÉIS, NORMAS: NBR 5688","Pç.",null,null,null,null,null,null,null,null,5,null,null,null,null,0,5]
["15.60","VALVULA DE RETENÇÃO PVC ESGOTO PRIMÁRIO SÉRIE NORMAL DN 100MM, COM ANÉIS,  NORMAS: NBR 568","Pç.",30,200,null,null,null,null,null,null,null,null,null,null,null,null,230]
["15.61","VALVULA DE RETENÇÃO PVC ESGOTO PRIMÁRIO SÉRIE NORMAL DN 150MM, COM ANÉIS,  NORMAS: NBR 5688","Pç.",null,null,null,null,null,null,null,null,null,null,5,null,null,5,10]
["15.62","VALVULA DE RETENÇÃO PVC ESGOTO PRIMÁRIO SÉRIE NORMAL DN 200MM, COM ANÉIS,  NORMAS: NBR 5688","Pç.",null,null,null,null,null,null,null,null,null,null,2,null,null,5,7]
[null,null,null,null,null,null,null,null,null,null,null,null,null,null,null,null,null,0]
[null,"LOTE 16: CONEXÕES EM PVC ESGOTO OCRE",null,null,null,null,null,null,null,null,null,null,null,null,null,null,null,0]
["16.1","ADAPTADOR PVC PONTA COLETOR ESGOTO OCRE X BOLSA TUBO CERÂMICO 100MM, COM ANÉIS, NORMAS: NBR 7362-1","Pç.",null,null,null,null,null,null,null,null,null,null,null,null,null,150,150]
["16.2","ADAPTADOR PVC PONTA COLETOR ESGOTO OCREX BOLSA TUBO CERÂMICO 150MM, COM ANÉIS, NORMAS: NBR 7362-1","Pç.",null,200,null,null,null,null,null,null,null,null,null,null,null,200,400]
["16.3","ADAPTADOR PVC PONTA COLETOR ESGOTO OCREX BOLSA TUBO CERÂMICO 200MM, COM ANÉIS, NORMAS: NBR 7362-1","Pç.",null,null,null,null,null,null,null,null,null,null,null,null,null,100,{"$f":"SUM(D479:Q479)","v":100}]
["16.4","ADAPTADOR PVC PONTA COLETOR ESGOTO OCREX BOLSA TUBO CERÂMICO 250MM, COM ANÉIS, NORMAS: NBR 7362-1","Pç.",null,null,null,null,null,null,null,null,null,null,null,null,null,50,50]
["16.5","ADAPTADOR PVC PONTA COLETOR ESGOTO OCREX BOLSA TUBO CERÂMICO 250MM, COM ANÉIS, NORMAS: NBR 7362-1","Pç.",null,null,null,null,null,null,null,null,null,null,null,null,null,50,50]
["16.6","CAP PVC COLETOR ESGOTO OCRE 100MM, COM ANÉIS, NORMAS: NBR 7362-1","Pç.",null,null,null,null,null,null,null,null,10,null,10,null,null,null,20]
["16.7","CAP PVC COLETOR ESGOTO OCRE 150MM, COM ANÉIS, NORMAS: NBR 7362-1","Pç.",null,20,null,null,null,null,null,null,10,null,10,null,6,10,56]
["16.8","CAP PVC COLETOR ESGOTO OCRE 200MM, COM ANÉIS, COM ANÉIS, NORMAS: NBR 7362-1","Pç.",null,null,null,null,null,null,null,null,null,null,null,null,null,10,10]
["16.9","CURVA LONGA PVC 22º COLETORA ESGOTO OCRE PONTA BOLSA 100MM, COM ANÉIS, NORMAS: NBR 7362-1","Pç.",null,null,null,null,null,null,null,null,null,null,null,null,null,20,20]
["16.10","CURVA LONGA PVC 45º COLETORA ESGOTO OCRE PONTA BOLSA 100MM, COM ANÉIS, NORMAS: NBR 7362-1","Pç.",40,null,null,null,null,null,null,null,20,null,null,null,null,100,160]
["16.11","CURVA LONGA PVC 90º COLETORA ESGOTO OCRE PONTA BOLSA 100MM, COM ANÉIS, NORMAS: NBR 7362-1","Pç.",null,null,null,null,null,null,null,null,null,null,null,null,null,150,150]
["16.12","CURVA LONGA PVC 22º COLETORA ESGOTO OCRE PONTA BOLSA 150MM, COM ANÉIS, NORMAS: NBR 7362-1","Pç.",null,null,null,null,null,null,null,null,null,null,null,null,null,50,50]
["16.13","CURVA LONGA PVC 45º COLETORA ESGOTO OCRE PONTA BOLSA 150MM, COM ANÉIS, NORMAS: NBR 7362-1","Pç.",null,30,null,4,null,null,null,null,10,null,5,null,6,50,105]
["16.14","CURVA LONGA PVC 90º COLETORA ESGOTO OCRE PONTA BOLSA 150MM, COM ANÉIS, NORMAS: NBR 7362-1","Pç.",null,100,null,null,null,null,null,null,20,3,null,null,6,70,199]
["16.15","CURVA LONGA PVC 22º COLETORA ESGOTO OCRE PONTA BOLSA 200MM, COM ANÉIS, NORMAS: NBR 7362-1","Pç.",null,null,null,null,null,null,null,null,null,null,10,null,null,50,60]
["16.16","CURVA LONGA PVC 45º COLETORA ESGOTO OCRE PONTA BOLSA 200MM, COM ANÉIS, NORMAS: NBR 7362-1","Pç.",null,10,null,4,null,null,null,null,5,null,null,null,null,0,19]
["16.17","CURVA LONGA PVC 90º COLETORA ESGOTO OCRE PONTA BOLSA 200MM, COM ANÉIS, NORMAS: NBR 7362-1","Pç.",null,10,null,null,null,null,null,null,5,3,null,null,null,50,68]
["16.18","CURVA LONGA PVC 45º COLETORA ESGOTO OCRE PONTA BOLSA 250MM, COM ANÉIS NORMAS: NBR 7362-1","Pç.",null,null,null,4,null,null,null,null,null,null,null,null,null,10,14]
["16.19","CURVA LONGA PVC 90º COLETORA ESGOTO OCRE PONTA BOLSA 250MM, COM ANÉIS, NORMAS: NBR 7362-1","Pç.",null,null,null,null,null,null,null,null,null,null,null,null,null,15,15]
["16.20","CURVA LONGA PVC 45º COLETORA ESGOTO OCRE PONTA BOLSA 300MM, COM ANÉIS, NORMAS: NBR 7362-1","Pç.",null,null,null,null,null,null,null,null,null,null,null,null,null,15,15]
["16.21","CURVA LONGA PVC 90º COLETORA ESGOTO OCRE PONTA BOLSA 300MM, COM ANÉIS, NORMAS: NBR 7362-1","Pç.",null,null,null,null,null,null,null,null,null,null,null,null,null,25,25]
["16.22","JOELHO PVC ESGOTO OCRE JE 100MM X 45º C/ANEL, NORMAS: NBR 7362-1","PÇ",null,null,null,20,null,15,null,null,null,null,null,null,null,null,35]
["16.23","JOELHO PVC ESGOTO OCRE JE 100MM X 90º C/ANEL, NORMAS: NBR 7362-1","Pç",null,null,null,null,null,null,null,null,null,null,null,null,null,200,200]
["16.24","JOELHO PVC ESGOTO OCRE JE 150MM X 90º C/ANEL, NORMAS: NBR 7362-1","Pç",null,null,null,null,null,null,null,null,null,null,null,null,null,100,100]
["16.25","JUNÇÃO PVC 45º COLETORA ESGOTO BBB 150MM X 150MM, COM ANÉIS, NORMAS: NBR 7362-1","Pç.",null,null,null,null,null,null,null,null,null,null,null,null,null,10,10]
["16.26","JUNÇÃO PVC 45º REDUÇÃO COLETORA ESGOTO OCRE BBB 150MM X 100MM, COM ANÉIS, NORMAS: NBR 7362-1","Pç.",null,null,null,null,null,null,null,null,null,null,null,null,null,10,10]
["16.27","JUNÇÃO PVC 45º COLETORA ESGOTO BBB 200MM X 200MM, COM ANÉIS, NORMAS: NBR 7362-1","Pç.",null,null,null,null,null,null,null,null,null,null,null,null,null,10,10]
["16.28","JUNÇÃO PVC 45º COLETORA ESGOTO BBB 250MM X 250MM, COM ANÉIS, NORMAS: NBR 7362-1","Pç.",null,null,null,null,null,null,null,null,null,null,null,null,null,10,10]
["16.29","JUNÇÃO PVC 45º COLETORA ESGOTO BBB 300MM X 300MM, COM ANÉIS, NORMAS: NBR 7362-1","Pç.",null,null,null,null,null,null,null,null,null,null,null,null,null,10,10]
["16.30","LUVA PVC DE CORRER COLETORA ESGOTO OCRE 100MM, COM ANÉIS, NORMAS: NBR 7362-1","Pç.",30,50,null,null,null,20,null,null,100,null,null,null,null,150,350]
["16.31","LUVA PVC DE CORRER COLETORA ESGOTO OCRE 150MM, COM ANÉIS, NORMAS: NBR 7362-1","Pç.",100,300,null,null,null,30,null,null,20,4,30,null,50,100,634]
["16.32","LUVA PVC DUPLA DE CORRER COLETORA ESGOTO OCRE 150MM, COM ANÉIS, NORMAS: NBR 7362-1","Pç.",null,null,10,null,null,null,null,null,null,null,null,null,null,0,10]
["16.33","LUVA PVC DE CORRER COLETORA ESGOTO OCRE 200MM, COM ANÉIS, NORMAS: NBR 7362-1","Pç.",null,20,null,null,null,null,null,null,10,4,null,null,null,70,104]
["16.34","LUVA PVC DE CORRER COLETORA ESGOTO OCRE 250MM, COM ANÉIS, NORMAS: NBR 7362-1","Pç.",null,null,null,null,null,null,null,null,null,4,null,null,null,35,39]
["16.35","LUVA PVC DE CORRER COLETORA ESGOTO OCRE 300MM, COM ANÉIS, NORMAS: NBR 7362-1","Pç.",null,null,null,null,null,null,null,null,null,null,null,null,null,35,35]
["16.36","REDUÇÃO PVC EXCÊNTRICA COLETORA ESGOTO OCRE PONTA BOLSA 150MM X 100MM, COM ANÉIS, NORMAS: NBR 7362-1","Pç.",null,null,null,null,null,null,null,null,100,null,null,null,null,0,100]
["16.37","REDUÇÃO PVC EXCÊNTRICA COLETORA ESGOTO OCRE PONTA BOLSA 200MM X 150MM, COM ANÉIS, NORMAS: NBR 7362-1","Pç.",null,null,null,null,null,null,null,null,10,2,null,null,null,0,12]
["16.38","REDUÇÃO PVC EXCÊNTRICA COLETORA ESGOTO OCRE PONTA BOLSA 250MM X 200MM, COM ANÉIS, NORMAS: NBR 7362-1","Pç.",null,null,null,null,null,null,null,null,null,20,null,null,null,null,20]
["16.39","SELIM 90º ELÁSTICO COM TRAVAS COLETOR ESGOTO OCRE 150MM X 100MM, COM ANÉIS, NORMAS: NBR 7362-1","Pç.",250,600,null,null,null,null,null,null,20,null,300,null,null,300,1470]
["16.40","SELIM COMPACTO COLETOR ESGOTO OCRE JEI 150MM X 100MM, COM ANÉIS, NORMAS: NBR 7362-1","Pç.",null,null,50,null,null,null,null,null,null,null,null,null,10,null,60]
["16.41","SELIM 90º ELÁSTICO COM TRAVAS COLETOR ESGOTO OCRE 200MM X 100MM, COM ANÉIS, NORMAS: NBR 7362-1","Pç.",70,null,null,null,null,null,null,null,null,null,null,null,null,150,220]
["16.42","SELIM COMPACTO COLETOR ESGOTO OCRE JEI 200MM X 100MM, COM ANÉIS, NORMAS: NBR 7362-1","Pç.",null,null,10,null,null,null,null,null,null,null,null,null,null,null,10]
["16.43","SELIM COMPACTO COLETOR ESGOTO OCRE JEI 250MM X 100MM, COM ANÉIS, NORMAS: NBR 7362-1","Pç.",null,null,null,null,null,null,null,null,null,null,null,null,null,70,70]
["16.44","SELIM COMPACTO COLETOR ESGOTO OCRE JEI 300MM X 100MM, COM ANÉIS, NORMAS: NBR 7362-1","Pç.",null,null,null,null,null,null,null,null,null,null,null,null,null,150,150]
["16.45","TÊ PVC 90° COLETOR ESGOTO OCRE BBB 100MM X100MM, COM ANÉIS, NORMAS: NBR 7362-1","Pç.",15,null,null,null,null,30,null,null,null,null,null,null,null,100,145]
["16.46","TÊ PVC 90° COLETOR ESGOTO OCRE BBB 150MM X150MM, COM ANÉIS, NORMAS: NBR 7362-1","Pç.",null,null,null,null,null,null,null,null,null,null,null,null,null,100,100]
["16.47","TÊ PVC 90º REDUÇÃO COLETOR ESGOTO OCRE BBB 150MM X100MM, COM ANÉIS, NORMAS: NBR 7362-1","Pç.",null,10,null,null,null,null,null,null,5,null,null,null,null,30,45]
["16.48","TÊ PVC 90° COLETOR ESGOTO OCRE BBB 200MM X200MM, COM ANÉIS, NORMAS: NBR 7362-1","Pç.",null,null,null,null,null,null,null,null,null,null,null,null,null,50,50]
["16.49","TÊ PVC 90º REDUÇÃO COLETOR ESGOTO OCRE BBB 200MM X100MM, COM ANÉIS, NORMAS: NBR 7362-1","Pç.",null,null,null,null,null,null,null,null,null,null,null,null,null,50,50]
["16.50","TÊ PVC 90º REDUÇÃO COLETOR ESGOTO OCRE BBB 200MM X150MM, COM ANÉIS, NORMAS: NBR 7362-1","Pç.",null,5,null,null,null,null,null,null,null,null,null,null,null,40,45]
["16.51","TÊ PVC 90° COLETOR ESGOTO OCRE BBB 250MM X250MM, COM ANÉIS, NORMAS: NBR 7362-1","Pç.",null,null,null,null,null,null,null,null,null,null,null,null,null,15,15]
["16.52","TÊ PVC 90° COLETOR ESGOTO OCRE BBB 300MM X300MM, COM ANÉIS, NORMAS: NBR 7362-1","Pç.",null,null,null,null,null,null,null,null,null,null,null,null,null,20,20]
[null,null,null,null,null,null,null,null,null,null,null,null,null,null,null,null,null,0]
[null,"LOTE 17: CONEXÕES EM FERRO FUNDIDO",null,null,null,null,null,null,null,null,null,null,null,null,null,null,null,0]
["17.1","COLAR DE TOMADA FERRO FUNDIDO PARA TUBO PVC DE40mm X 1/2” NORMAS: - NBR 6414","Pç.",null,null,null,null,null,null,null,null,null,null,null,null,null,50,50]
["17.2","COLAR DE TOMADA FERRO FUNDIDO P/TUBO PVC DN50mm – DE60mm X 3/4” C/PARAFUSOS E PORCAS NORMAS: - NBR 6414.","Pç.",null,null,null,null,null,null,null,null,null,null,null,null,null,50,50]
["17.3","COLAR DE TOMADA FERRO FUNDIDO PARA TUBO DE CIMENTO AMIANTO DN60mm X 1/2”  NORMAS: - NBR 6414","Un",null,null,null,null,null,null,null,null,20,null,null,null,null,50,70]
["17.4","COLAR DE TOMADA FERRO FUNDIDO PARA TUBO DE CIMENTO AMIANTO DN85mm X 3/4” COM PARAFUSOS E PORCAS. NORMAS: - NBR 6414 ","Pç.",null,null,null,null,null,null,null,null,null,null,null,null,5,50,55]
["17.5","COLAR DE TOMADA FERRO FUNDIDO P/TUBO DE CIMENTO AMIANTO DN100mm X 3/4” C/PARAFUSOS E PORCAS. P/REDE DE ÁGUA NORMAS: NBR 6414 ","Pç.",null,null,null,null,null,null,null,null,null,null,null,null,null,50,50]
["17.6","COLAR DE TOMADA FERRO FUNDIDO PARA TUBO DE CIMENTO AMIANTO DN100mmX 1/2”  NORMAS: - NBR 6414","Pç",null,null,null,null,null,null,null,null,10,null,null,null,null,null,10]
["17.7","COLAR DE TOMADA FERRO FUNDIDO PARA TUBO DE CIMENTO AMIANTO DN125mmX 3/4”   NORMAS: - NBR 6414.","Pç.",null,null,null,null,null,null,null,null,null,null,null,null,null,30,30]
["17.8","COLAR DE TOMADA FERRO FUNDIDO PARA TUBO DE CIMENTO AMIANTO DN150mmX 3/4”   NORMAS: - NBR 6414.","Pç.",null,null,null,null,null,null,null,null,10,null,null,null,null,30,40]
["17.9","CURVA EM FERRO FUNDIDO DN 150MM X 22º, COM BOLSAS E ANEÍS DE BORRACHA","Pç.",null,null,null,null,1,null,null,null,null,null,null,null,null,null,1]
["17.10","CURVA EM FERRO FUNDIDO DN 150MM X 90º, COM BOLSAS E ANEÍS DE BORRACHA","Pç.",null,null,null,4,null,null,null,null,null,null,null,null,null,null,{"$f":"SUM(D540:Q540)","v":4}]
["17.11","EXTREMIDADE EM FERRO FUNDIDO, C/FLANGE, DN 100 MM, C/BOLSA P/PVC.","Pç",null,null,null,null,null,null,null,null,null,null,2,null,null,null,2]
["17.12","EXTREMIDADE EM FERRO FUNDIDO, C/FLANGE, DN 100 MM, C/PONTA P/PVC.","Pç",null,null,null,null,null,null,null,null,null,null,2,null,null,null,2]
["17.13","EXTREMIDADE EM FERRO FUNDIDO, C/FLANGE, DN 150 MM, C/BOLSA P/PVC.","Pç",null,null,null,4,null,null,null,null,null,null,4,null,null,null,{"$f":"SUM(D543:Q543)","v":8}]
["17.14","EXTREMIDADE EM FERRO FUNDIDO, C/FLANGE, DN 150 MM, C/PONTA P/PVC.","Pç",null,null,null,4,null,null,null,null,null,null,2,null,null,null,6]
["17.15","JUNTA GIBAULT F.F. 100MM X 125MM P/TUBO PBA CL-15 C/ANEIS E PARAFUSOS.","Pç",null,null,null,null,null,null,null,null,10,null,null,null,null,null,10]
["17.16","JUNTA GIBAULT F.F. DN50mm P/F.FUNDIDO C/ANEIS E PARAFUSOS.","Un",null,null,null,null,null,null,null,null,null,null,null,null,null,60,60]
["17.17","JUNTA GIBAULT F.F. DN50mm CA Cl-30 X DE60mm PVC Cl-20 C/ANEIS E PARAFUSOS.","Pç.",null,null,4,null,null,null,null,null,null,null,null,null,null,null,{"$f":"SUM(D547:Q547)","v":4}]
["17.18","JUNTA GIBAULT F.F. DN75mm CA Cl-30 X DE85mm PVC Cl-20 C/ANEIS E PARAFUSOS.","Pç",null,null,null,null,null,null,null,null,null,null,null,null,null,20,{"$f":"SUM(D548:Q548)","v":20}]
["17.19","JUNTA GILBAULT DN 100mm P/Tubo CA CL-20 REVESTIDA ESMALTE BETUMINOSO C/ANEIS E PARAFUSOS.","Pç",null,null,null,null,10,null,null,null,null,null,null,null,null,null,10]
["17.20","JUNTA GILBAULT DN 100mm P/Tubo Fºfº  C/ANEIS E PARAFUSOS.","Pç",null,null,null,null,6,null,null,null,null,null,null,null,null,40,46]
["17.21","JUNTA GILBAULT DN 100mm P/Tubo P/PVC CL-15 REVESTIDA COMESMALTE BETUMINOSO C/ANEIS E PARAFUSOS.","Un",null,null,null,null,6,null,null,null,8,null,null,null,null,null,14]
["17.22","JUNTA GILBAULT EM FERRO FUNDIDO DN 100MM CL 20 PBA X DN 100MM CA CL 20, REVESTIDA COM ESMALTE BETUMINOSO, C/ANEIS E PARAFUSOS.","Pç",null,null,null,null,10,null,null,null,null,null,null,null,null,null,10]
["17.23","JUNTA GIBAULT F.F. 150MM X 125MM P/TUBO PBA CL-15 C/ANEIS E PARAFUSOS.","Pç",null,null,null,null,null,null,null,null,10,null,null,null,null,null,10]
["17.24","JUNTA GILBAULT DN150mm p/tubo CA Cl-15 X tubo PVC  160mm Cl-20 C/ANEIS E PARAFUSOS.","Pç",null,null,null,null,10,null,null,null,null,null,null,null,null,null,10]
["17.25","JUNTA GILBAULT DN150MM P/TUBO F.F. C/PARAFUSOS E ANEIS.","Pç",null,null,null,null,6,null,null,null,null,null,null,null,null,30,36]
["17.26","JUNTA GILBAULT DN200MM P/TUBO F.F. C/PARAFUSOS E ANEIS.","Pç",null,null,null,null,null,null,null,null,null,null,null,null,null,30,30]
["17.27","REGISTRO GAVETA CHATO F.F. JEI  DN50mm X DE60mm C/cunha de borracha p/tubo PVC PBA, NBR 12430","Un",null,null,null,null,null,null,null,null,null,null,null,null,null,50,50]
["17.28","REGISTRO DE FERRO FUNDIDO, C/BOLSAS, 60MM C/HASTE E CABEÇOTE. CUNHA DE BORRACHA, com cunha revestida de borracha, Padrão construtivo conforme NBR 14968, composto de cunha maciça em ferro fundido dúctil, corpo e tampa confeccionados em ferro fundido dúctil, revestimento interno e externo em epóxi pó depositado eletrostaticamente com espessura mínima de 250 micra, passagem plena sem obstrução pela cunha, junta corpo chapéu confeccionada em EPDM, haste de manobra inteiriça confeccionada em aço inox ABNT 420, vedação da haste com anéis toroidais (o’rings) alojados na bucha de vedação, acionamento por cabeçote, extremidades com bolsas para tubos de PVC/PBA conforme norma NBR 12430.","Pç.",null,60,null,20,3,null,null,null,6,null,null,null,null,null,89]
["17.29","REGISTRO DE FERRO FUNDIDO DE GAVETA HASTE CURTA DE 85 MM com cunha revestida de borracha, Padrão construtivo conforme NBR 14968, composto de cunha maciça em ferro fundido dúctil, corpo e tampa confeccionados em ferro fundido dúctil, revestimento interno e externo em epóxi pó depositado eletrostaticamente com espessura mínima de 250 micra, passagem plena sem obstrução pela cunha, junta corpo chapéu confeccionada em EPDM, haste de manobra inteiriça confeccionada em aço inox ABNT 420, vedação da haste com anéis toroidais (o’rings) alojados na bucha de vedação, acionamento por cabeçote, extremidades com bolsas para tubos de PVC/PBA conforme norma NBR 5647.",null,null,null,null,4,null,null,null,null,2,null,null,null,null,null,6]
["17.30","REGISTRO DE FERRO FUNDIDO, C/BOLSAS, 110MM C/HASTE E CABEÇOTE. CUNHA DE BORRACHA, com cunha revestida de borracha, Padrão construtivo conforme NBR 14968, composto de cunha maciça em ferro fundido dúctil, corpo e tampa confeccionados em ferro fundido dúctil, revestimento interno e externo em epóxi pó depositado eletrostaticamente com espessura mínima de 250 micra, passagem plena sem obstrução pela cunha, junta corpo chapéu confeccionada em EPDM, haste de manobra inteiriça confeccionada em aço inox ABNT 420, vedação da haste com anéis toroidais (o’rings) alojados na bucha de vedação, acionamento por cabeçote, extremidades com bolsas para tubos de PVC/PBA conforme norma NBR 12430.TRO DE F.F. P/TUBO DEFOFO DN-100mm cabeçote, c/aneis em ferro fundido dúcitil e c/cunha revestida  de elastômero EPDM , acionamento p/cabeçote.","Pç",null,null,null," 6","2 ",null,null,null," 5",null,null,null,null,30,30]
["17.31","REGISTRO F. FUNDIDO, C/BOLSAS, 100MM C/HASTE E CABEÇOTE. CUNHA DE BORRACHA, P/REDE DE ÁGUA TUBO DEFOFO, JEI","Pç",null,null,null,null,null,null,null,null,null,null,null,null,null,10,{"$f":"SUM(D561:Q561)","v":10}]
["17.32","REGISTRO Fº. Fº. GAVETA E VOLANTE C/BOLSAS, 100MM C/HASTE E CABEÇOTE. CUNHA DE BORRACHA, P/REDE DE ÁGUA TUBO DEFOFO, JEI","Pç",null,null,null,null,null,null,null,null,null,null,null,null,null,10,{"$f":"SUM(D562:Q562)","v":10}]
["17.33","REGISTRO GAVETA CHATO FF JEI DN100mm X 110mm C/CUNHA BORRACHA P/TUBO PVC PBA NBR-12430.","Pç.",null,null,null,null,null,null,null,null,null,null,2,null,null,null,2]
["17.34","REGISTRO DE F.F.  JE P/TUBO DEFOFO DN-150mm cabeçote, c/aneis de borracha e c/cunha revestida  de elastômero EPDM , acionamento p/cabeçote.","Pç",null,null,null,null,null,null,null,null,null,null,null,null,null,30,30]
["17.35","REGISTRO DE F.F., C/BB 150mm, P/PBA, cunha emborrachada, C/HASTE E CABEÇOTE e aneis  borrachas.","Pç.",null,null,null,6,1,null,null,null,null,null,null,null,null,null,7]
["17.36","REGISTRO DE Fº.Fº. C/GAVETA E VOLANTE JE P/TUBO DEFOFO DN-150mm cabeçote, c/aneis de borracha e c/cunha revestida  de elastômero EPDM , acionamento p/cabeçote.","Pç",null,null,null,null,null,null,null,null,null,null,null,null,null,10,10]
["17.37","REGISTRO FºFº CUNHA DE BORRACHA FLANGE/FLANGE VOLANTE PN-16 P/TUBO FºFº  DN-150MM.","Pç.",null,null,null,null,null,null,null,null,null,null,2,null,null,null,2]
["17.38","REGISTRO DE Fº.Fº. C/GAVETA E VOLANTE JE P/TUBO DEFOFO DN-200mm cabeçote, c/aneis de borracha e c/cunha revestida  de elastômero EPDM , acionamento p/cabeçote.","pç",null,null,null,null,null,null,null,null,null,null,null,null,null,10,10]
["17.39","REGISTRO F. FUNDIDO, C/BOLSAS, 200MM C/HASTE E CABEÇOTE. CUNHA DE BORRACHA, P/REDE DE ÁGUA TUBO DEFOFO, JEI","Pç",null,null,null,null,null,null,null,null,null,null,null,null,null,10,10]
["17.40","TÊ EM F.FUNDIDO BBB JE DN-150mm X 150mm p/ tubo DEFOFO NBR-7665/07 c/borrachas","Pç.",null,null,null,4,1,null,null,null,null,null,null,null,null,null,5]
["17.41","TÊ EM F.FUNDIDO BBB JE DN-150mm X 150mm p/ tubo PVC PBA NBR-7665/07 c/borrachas","Pç.",null,null,null,4,null,null,null,null,null,null,null,null,null,null,4]
["17.42","TÊ EM F.FUNDIDO BBB JE DN-150mm X 60mm p/tubo DEFOFO NBR-7665/07 c/borrachas","Pç.",null,null,null,2,null,null,null,null,null,null,null,null,null,null,2]
["17.43","TÊ EM F.FUNDIDO BBB JE DN-140 DE160mm p/tubo PBA NBR-5647 c/borrachas","Pç.",null,null,null,4,null,null,null,null,null,null,null,null,null,10,14]
["17.44","TÊ EM F.FUNDIDO COM FLANGE DN-300mm  p/ tubo DEFOFO NBR-7665/07 c/borrachas","Pç.",null,null,null,1,null,null,null,null,null,null,null,null,null,null,1]
[null,null,null,null,null,null,null,null,null,null,null,null,null,null,null,null,null,0]
[null,"LOTE 18: CONEXÕES DE METAL PARA HIDRÔMETROS",null,null,null,null,null,null,null,null,null,null,null,null,null,null,null,0]
["18.1","CONJUNTO PORCA/TUBETE/GUARNIÇÃO DE METAL P/HIDRÔMETRO DE ½”, ","Un",null,4000,500,3000,null,null,600,null,null,null,null,null,null,3000,11100]
["18.2","CONJUNTO PORCA/TUBETE/GUARNIÇÃO DE METAL P/HIDRÔMETRO DE ¾”, ","Un",null,400,null,null,null,null,null,null,null,null,null,null,null,null,400]
["18.3","CONJUNTO PORCA/TUBETE/GUARNIÇÃO DE METAL P/HIDRÔMETRO DE  1” , ","Um",null,null,null,null,null,null,null,null,6,null,null,null,null,null,6]
[null,null,null,null,null,null,null,null,null,null,null,null,null,null,null,null,null,0]
[null,"LOTE 19: CONEXÕES DE PVC PARA HIDRÔMETROS",null,null,null,null,null,null,null,null,null,null,null,null,null,null,null,0]
["19.1","CONJUNTO PORCA/TUBETE/GUARNIÇÃO DE PVC P/HIDRÔMETRO DE ½”, ","Um",null,null,null,null,null,null,null,null,null,null,1000,400,null,null,1400]
["19.2","GUARNIÇÃO DE BORRACHA P/EXTREMIDADE DE HIDRÔMETROS DE ½”, ","Um",null,5000,null,null,null,null,null,null,1000,null,null,null,null,10000,16000]
["19.3","GUARNIÇÃO DE BORRACHA P/EXTREMIDADE DE HIDRÔMETROS DE ¾”.","Um",null,2000,null,null,null,null,null,null,1000,null,null,null,null,null,3000]
["19.4","LACRE  PARA SUPRESSÃO DE ÁGUA ½” – LACRE ANTIFRAUDE EM POLIPROPILENO PARA HIDRÔMETRO COM TRAVAS LATERAIS, FECHAMENTO MANUAL SEM UTILIZAÇÃO DE FERRAMENTAS.","Um",2000,null,null,null,1000,null,null,null,null,null,null,null,null,null,3000]
["19.5","HÓSTIA EM PVC/POLIPROPILENO (DISPOSITIVO PARA CORTE DE ÁGUA ½”.","UM",3000,null,null,null,1000,null,null,null,500,null,null,null,null,null,4500]
[null,null,null,null,null,null,null,null,null,null,null,null,null,null,null,null,null,0]
[null,"LOTE 20: CONEXÕES DE METAL E SERRINHA",null,null,null,null,null,null,null,null,null,null,null,null,null,null,null,0]
["20.1","REGISTRO DE METAL COM PRESSÃO DE ½”.","Um",null,null,null,null,null,null,null,null,null,null,null,null,null,500,500]
["20.2","REGISTRO DE METAL DE GAVETA E VOLANTE ½”.","Um",null,null,null,null,null,null,null,null,null,null,null,null,null,400,400]
["20.3","TORNEIRA DE METAL E PRESSÃO DE ½”.","Um",null,null,null,null,null,null,null,null,null,null,null,null,null,100,100]
["20.4","REGISTRO DE METAL COM PRESSÃO DE ¾.","Um",null,null,null,null,null,null,null,null,null,null,null,null,null,300,300]
["20.5","REGISTRO DE METAL DE GAVETA E VOLANTE  ¾”.","Um",null,null,null,null,null,null,null,null,null,null,null,null,null,400,400]
["20.6","REGISTRO DE METAL DE GAVETA E VOLANTE 1”.","Um",null,null,null,null,null,null,null,null,null,null,null,null,null,150,150]
["20.7","REGISTRO DE METAL DE GAVETA E VOLANTE 1, ½”.","Um",null,null,null,null,null,null,null,null,null,null,null,null,null,100,100]
["20.8","REGISTRO DE METAL DE GAVETA E VOLANTE 1,1/4”.","Um",null,null,null,null,null,null,null,null,null,null,null,null,null,50,50]
["20.9","REGISTRO DE METAL DE GAVETA E VOLANTE 2”.","Um",null,null,null,null,null,null,null,null,null,null,null,null,null,100,100]
["20.10","REGISTRO DE METAL DE GAVETA E VOLANTE 3”.","Um",null,null,null,null,null,null,null,null,null,null,null,null,null,100,100]
["20.11","REGISTRO BOIA DE METAL 2”.","Pç",null,null,null,10,null,null,null,null,null,null,null,null,null,null,10]
["20.12","LÂMINA DE SERRA MANUAL BIMETAL FLEXÍVEL DE 12”, MEDINDO 300 X 13 X 0,6MM, STARRET OU SIMILAR","Pç.",500,1000,20,100,100,500,null,null,200,60,200,null,100,2000,4780]
[null,null,null,null,null,null,null,null,null,null,null,null,null,null,null,null,null,0]
[null,"LOTE 21 – HIDROMETROS ATÉ 3M3/H",null,null,null,null,null,null,null,null,null,null,null,null,null,null,null,0]
["21.1","HIDRÔMETRO UNIJATO TRANSMISSÃO MAGNÉTICA CL-B VAZÃO DE 1,5M3/H X ½” SEM CONEXÕES, RELOJOARIA INCLINADA 45º ","Um",null,null,null,null,200,null,null,null,120,null,null,null,null,null,320]
["21.2","HIDRÔMETRO MULTIJATO TRANSMISSÃO MAGNÉTICA CL-B VAZÃO DE 3M3/H X ½” SEM CONEXÕES, RELOJOARIA INCLINADA 45º","Um",650,null,null,null,null,null,null,null,null,null,null,null,null,25,675]
["21.3","HIDRÔMETRO UNIJATO TRANSMISSÃO MAGNÉTICA CL-B VAZÃO DE 3M3/H X ½” SEM CONEXÕES, RELOJOARIA INCLINADA 45º","Um",null,2000,150,1500,null,400,300,500,null,null,400,200,null,5000,10450]
[]
[null,"LOTE 22 – HIDROMETROS ATÉ 7M3/H"]
["22.1","HIDRÔMETRO MULTIJATO TRANSMISSÃO MAGNÉTICA CL-B VAZÃO DE 5M3/H X ¾” SEM CONEXÕES, RELOJOARIA INCLINADA 45º.","Um",20," 200",null,null,null,null,null,null,null,null,null,null,null,null,20]
["22.2","HIDRÔMETRO MULTIJATO TRANSMISSÃO MAGNÉTICA CL-B VAZÃO DE 7M3/H X 1” SEM CONEXÕES, RELOJOARIA INCLINADA 45º.","Um",null,null,null,null,null,null,null,null,3,null,null,null,null,null,3]
[]
[null,"LOTE 23: TAMPÃO F.F. PARA PV"]
["23.1","TAMPÃO DE FERRO FUNDIDO, ARTICULADO 600MM P/SUPORTAR 40TN, PARA [PV] COM A INSCRIÇÃO {SAAE/ÁGUA}  NBR-160","Un",null,150,null,10,null,null,null,null,20,null,null,null,null,null,180]
["23.2","TAMPÃO DE FERRO FUNDIDO, ARTICULADO 600MM P/SUPORTAR 40TN, PARA [PV] COM A INSCRIÇÃO {SAAE/ESGOTO}  NBR-160","Un",null,150,null,10,5,null,null,null,40,null,10,null,null,500,715]
[]
[null,"LOTE 24:  PVC DIVERSOS"]
["24.1","LUVA DE CORRER PVC BOLSA/BOLSA JUNTA ELÁSTICA DE125MM, COM ANEL DE BORRACHA, NORMAS: NBR 5647-1","Pç.",null,null,null,null,null,null,null,null,20,null,null,null,null,null,{"$f":"SUM(D616:Q616)","v":20}]
["24.2","TUBO PVC PONTA/BOLSA JEI/JERI CLASSE 15 DE125MM X 6 METROS, C/ ANEL DE BORRACHA NORMAS: NBR 5647/1",null,null,null,null,null,null,null,null,null,20,null,null,null,null,null,{"$f":"SUM(D617:Q617)","v":20}]
["24.3","TUBO PVC/PBA JEI/JERI CLASSE 15, DN60MM DE75MM X 6 METROS, C/ ANEL DE BORRACHA NORMAS:  NBR 5647-1","Tubo",null,null,null,null,null,null,null,null,43,null,null,null,null,50,{"$f":"SUM(D618:Q618)","v":93}]
[null,"OBS.: Os HIDRÔMETROS(Lotes 21 e 22) deverão ter a garantia mínima de 2 (dois) anos a partir da data de operação, e no ato da entrega dos mesmos deverá ser apresentado resultado dos testes em laboratório credenciado pelo INMETRO, utilizando a NBR 15538:2001."]

{"sheet":"Plan2","index":1,"n_rows":0,"n_cols":0,"rows_kept":0,"cut":false,"hidden":false,"merged":[]}

{"sheet":"Plan3","index":2,"n_rows":0,"n_cols":0,"rows_kept":0,"cut":false,"hidden":false,"merged":[]}